{"text_format":"1","workbook":"xlsx","n_sheets":18,"sheets":["INSTRUCTIONS","Table of Contents","1. Contact Info","2. Measure Overview","3. Base and Measure Case","4. Requirements","5. Parameters","Building Type","Building Type (2)","Building Vintage","6. Impacts","7. Costs","8. Cost Effectiveness","9. References and Resources","Drop Down List Choices","Value Tables","UseCat - UseSubCat","Tech Group - Tech Type"],"not_rendered":{"charts":0,"images":1,"macros":1,"external_links":5,"defined_names":93,"comments":0,"pivot_tables":0},"unopened":[],"bounds":{"document_bytes":16777216,"sheet_cells":100000,"rows_first":2000,"rows_last":500,"rows_between":2000,"halvings":0,"cell_chars":16384,"cell_head_chars":4096},"cells_cut":0,"cells_raw":0,"read":"whole","date_system":"1900"}

{"sheet":"INSTRUCTIONS","index":0,"n_rows":18,"n_cols":2,"rows_kept":18,"cut":false,"hidden":false,"merged":[]}
[]
[null,"MEASURE PROPOSAL FORM"]
[null,"Version 1.0 | Last Updated May 27, 2020"]
[null,"Disclaimer: Completion of this form and/or a “pass” vote by the Measure Screening \nCommittee does not represent or guarantee that the measure will be subsequently \nsubmitted by an investor-owned utility (IOU) to the California Public Utilities Commission (CPUC) for review."]
[null,"Instructions"]
[null,"Eligibility. \nA third-party or non-utility entity can submit a proposal to develop an energy efficiency measure to be considered for the California energy efficiency portfolio. This form is to be used to submit a request for a new statewide deemed measure or for an update to an existing measure to be included in the California energy efficiency portfolio. \n\nTo qualify for consideration, the proposed appliance, equipment, control system, or practice must meet the definition of an energy efficiency measure, as defined by the California Public Utilities Commission (CPUC) in the Energy Efficiency Policy Manual, version 5 (2013):"]
[null,"An energy using appliance, equipment, control system, or practice whose installation or implementation results in reduced energy use (purchased from the distribution utility) while maintaining a comparable or higher level of energy service as perceived by the customer. In all cases energy efficiency measures decrease the amount of energy used to provide a specific service or to accomplish a specific amount of work (e.g., kWh per cubic foot of a refrigerator held at a specific temperature, therms per gallon of hot water at a specific temperature, etc.) (p 52)"]
[null,"Before you invest in developing a measure proposal, be sure to check in the eTRM to make sure the measure that you want to propose does not already exist.  \n\nSome measures might be more appropriate as new measure offerings to an existing measure instead of being developed as a new stand-alone measure.  Contact CalTF Staff (CAMeasures@CalTF.org) if you have any questions."]
[]
[null,"Required fields. \nAll fields in this form should be completed to the extent possible. \n\nFields indicated with Ù are required for the utilities to adequately evaluate the proposed measure and conduct a preliminary assessment of measure cost effectiveness. (Generally, utilities seek measures with a total resource cost (TRC) test result equal to or higher than 1.0, but that is not the only criteria for selection.) "]
[]
[null,"How to complete this form. \n1.  This form is intended to be completed and submitted via email.  \n2.  Enter responses in shaded cells only.\n3.  Many fields have dropdown list for response choices. Click on the shaded cell and click on the arrow on the bottom right corner of the cell to display the list then select your response(s). To clear a response click on the choice again. Delete to clear all responses.\n4.  Expand row height if additional space is required for to display your entire responses. However, the intent of this form is to provide summary and preliminary information rather than comprehensive detailed responses that will be required for the Draft and Final Measure Packets. "]
[]
[null,"How to submit this form. \nCreate a zip file to submit this form, CET files, and other available references.\nSubmit the completed form and all requested documentation via email to: CAMeasures@CalTF.org. "]
[]
[null,"Cal TF Staff will confirm receipt and will notify the designated Primary Contact if the form is incomplete."]
[]
[null,"What to do next. \nAdditional instructions, next steps, and statewide measure development resources are available at http://www.caltf.org/submit-a-measure."]

{"sheet":"Table of Contents","index":1,"n_rows":22,"n_cols":2,"rows_kept":22,"cut":false,"hidden":false,"merged":[]}
[null,"Table of Contents"]
[]
[null,"Click on the hyperlinks below to jump to a tab in this workbook."]
[]
[null,"1.   Contact Information"]
[null,"Designate the primary contact for this proposed measure."]
[null,"2.   Measure Overview"]
[null,"Provide a general description of the technology/equipment and its market potential."]
[null,"3.   Base Case and Measure Case Definitions"]
[null,"Provide a general description of the proposed measure and the assumed baseline."]
[null,"4.   Requirements"]
[null,"List all applicable state and federal standards as well as any applicable regulatory requirements."]
[null,"5.   Parameters"]
[null,"Indicate key parameters and assumptions that are needed for the preliminary cost-effectiveness analysis."]
[null,"6.   Energy Savings & Demand Reduction"]
[null,"Explain the methods to estimate energy savings and demand reduction and provide \nper-unit values."]
[null,"7.   Costs"]
[null,"Explain the methods to estimate material and labor costs and provide per-unit values."]
[null,"8.   Cost Effectiveness"]
[null,"Provide results of preliminary cost-effectiveness analysis."]
[null,"9.   References and Resources"]
[null,"List key references that have or will be used to document the analysis to establish the deemed savings and costs for this measure."]

{"sheet":"1. Contact Info","index":2,"n_rows":24,"n_cols":5,"rows_kept":24,"cut":false,"hidden":false,"merged":[[13,5,13,7],[15,5,15,7],[16,5,16,7],[17,5,17,7],[23,4,23,5],[21,2,21,7],[14,5,14,7],[5,5,5,7],[7,5,7,7],[8,5,8,7],[9,5,9,7],[0,2,0,7],[2,2,2,7],[6,5,6,7]]}
[null,null,"1a.   Contact Information"]
[]
[null,null,"All future communications regarding this form and the proposed measure will be directed to the Primary Contact designed below. "]
[]
[]
[null,null,null,null,"Primary Contact "]
[null,1,null,null,"Name"]
[null,{"$f":"B7+1","v":2},null,null,"Title"]
[null,{"$f":"B8+1","v":3},null,null,"Company Name"]
[null,4,null,null,"Email Address  "]
[null,5,null,null,"Phone1 "]
[null,6,null,null,"Phone2"]
[]
[null,null,null,null,"Secondary Contact "]
[null,{"$f":"B12+1","v":7},null,null,"Name"]
[null,8,null,null,"Title"]
[null,9,null,null,"Company Name"]
[null,10,null,null,"Email Address  "]
[null,11,null,null,"Phone1 "]
[null,12,null,null,"Phone2"]
[]
[null,null,"1b.   Proposed Measure Development Funding"]
[]
[null,{"$f":"B20+1","v":13},null,null,"Select proposed funding source to develop this measure:\n(Select one.)"]

{"sheet":"2. Measure Overview","index":3,"n_rows":30,"n_cols":6,"rows_kept":30,"cut":false,"hidden":false,"merged":[[28,4,28,5],[29,4,29,5],[16,4,16,5],[15,4,15,5],[21,4,21,5],[22,4,22,5],[18,4,18,5],[19,4,19,5],[8,4,8,5],[0,2,0,5],[2,2,2,5],[24,4,24,5],[26,4,26,5],[25,4,25,5]]}
[null,null,"2.   Measure Overview and Market Potential"]
[]
[null,null,"On this tab you will provide a summary of your proposed measure and its market potential.. "]
[]
[null,null,null,"Ù Indicates required field for preliminary cost effectiveness analysis."]
[]
[null,1,null,"Ù","Measure Name","Enter text."]
[]
[null,null,null,null,"Measure Classification"]
[null,{"$f":"B7+1","v":2},null,"Ù","Use Category (Pick one.)"]
[null,{"$f":"B10+1","v":3},null,"Ù","Use Sub Category (Pick one.)"]
[null,{"$f":"B11+1","v":4},null,null,"Technology Group (Pick one.)"]
[null,{"$f":"B12+1","v":5},null,null,"Technology Type (Pick one.)"]
[null,{"$f":"B13+1","v":6},null,"Ù","Is this a fuel substitution measure? (Y/N)"]
[]
[null,{"$f":"B14+1","v":7},null,"Ù","Technology Summary:\nProvide a high-level description of the measure and how it saves energy/reduces peak demand."]
[null,null,null,null,"Enter text."]
[]
[null,{"$f":"B16+1","v":8},null,null,"Could this measure have an impact on other (approved) existing energy efficiency measures? If so, how?  \nWill this measure replace an (approved) existing energy efficiency measure? "]
[null,null,null,null,"Enter text."]
[]
[null,{"$f":"B19+1","v":9},null,null,"Market Potential\nDescribe the market potential for the proposed technology/equipment. Include key drivers of savings, target markets, estimated annual product demand, competing technologies, and market barriers/barriers to adoption."]
[null,null,null,null,"Enter text."]
[]
[null,{"$f":"B22+1","v":10},null,null,"Supply Chain\nHow many manufacturers currently produce the proposed technology/equipment?  If the proposed technology/equipment production is limited to to one manufacturer, explain how you will meet the guidance provided by the CPUC Energy Division: "]
[null,null,null,null,"Technologies and their energy efficiency features must be described generically and using basic engineering principles and should not identify a specific vendor or developer. As required for all workpapers, Program Administrators are instructed to provide evidence of savings, and to provide a functional description of the technology including a description of the mechanisms of savings and the eligibility requirements in the workpaper which does not identify the vendor or developer. Approval of the workpaper will be based on validity and completeness of the functional description, savings mechanism description, eligibility requirements of the technology which must be vendor neutral, and most importantly, demonstrated savings validated by complete and independent data sources. (Biermayer, P. \"Informational Memo on Allowing a Sole Source measure in a Workpaper.\" (Memorandum to Cassie Cuaresma, SCE; Henry Liu, PG&E; Ed Reynoso, SDG&E; Chan Paek, SCG. April 23, 2019.)"]
[null,null,null,null,"Enter text."]
[]
[null,{"$f":"B25+1","v":11},null,null,"Is the proposed technology/equipment mass produced and ready for mass market distribution?  Explain."]
[null,null,null,null,"Enter text."]

{"sheet":"3. Base and Measure Case","index":4,"n_rows":15,"n_cols":5,"rows_kept":15,"cut":false,"hidden":false,"merged":[[2,2,2,4]]}
[null,null,"3.   Base Case and Measure Case Descriptions"]
[]
[null,null,"On this tab you will provide descriptions of the measure case and assumed base case."]
[]
[null,null,null,"Ù Indicates required field for preliminary cost effectiveness analysis."]
[]
[null,1,null,"Ù","Base Case Description:\nDescribe the base case specification. Is the baseline defined by existing conditions, standard practice, or code? "]
[null,null,null,null,"Enter text."]
[null,{"$f":"B7+1","v":2},null,null,"Describe the methodology and list the source(s) used to determine the base case specification."]
[null,null,null,null,"Enter text."]
[]
[null,{"$f":"B9+1","v":3},null,"Ù","Measure Case Description:\nDescribe the energy efficient specification."]
[null,null,null,null,"Enter text."]
[null,{"$f":"B12+1","v":4},null,null,"Describe the methodology and list the source(s) used to determine the measure case specification."]
[null,null,null,null,"Enter text."]

{"sheet":"4. Requirements","index":5,"n_rows":29,"n_cols":7,"rows_kept":29,"cut":false,"hidden":false,"merged":[[28,4,28,6],[0,2,0,6],[2,2,2,6],[27,4,27,6],[15,4,15,6],[9,4,9,6],[5,4,5,6],[18,4,18,6],[16,4,16,6],[23,4,23,5],[24,4,24,6]]}
[null,null,"4.   Standards and Requirements"]
[]
[null,null,"On this tab you will list all known state and federal standards and other state regulatory requirements that pertain to either the base case or proposed measure. "]
[]
[]
[null,1,null,null,"Federal Standards\nFederal codes applicable to energy efficiency standards are developed under the U.S. Department of Energy (for example: CFR, Title 10, subchapter D, parts 430 and 431). \nList each applicable code below, include specific section number and effective date."]
[null,null,null,null,"Enter text.",null,"Enter date."]
[]
[]
[null,{"$f":"B6+1","v":2},null,null,"State Code Requirements\nCalifornia standards are established by the California Energy Commission (CEC) and include Title 20 (Appliance Efficiency Regulations) and Title 24 (Building Energy Efficiency Standards).\nList each applicable code, include specific section number. Add additional rows if necessary."]
[null,null,null,null,"Enter text.",null,"Enter date."]
[]
[]
[]
[]
[null,{"$f":"B10+1","v":3},null,null,"Other State Regulatory Requirements\nList all applicable requirements or restrictions stipulated by the California Public Utilities Commission or other state agencies. Examples include (but are not limited to) CPUC Resolution, CPUC Decision, and/or disposition."]
[null,null,null,null,"See the Statewide Deemed Workpaper Rulebook.  A link to this reference can be found on the Tools page of the Cal TF website."]
[null,null,null,null,"http://www.caltf.org/tools"]
[null,null,null,null,"List each requirement below, include type of source (disposition, Resolution, Decision) and reference number. Add additional rows if necessary."]
[null,null,null,null,"Enter text.",null,"Enter date."]
[]
[]
[]
[null,{"$f":"B16+1","v":4},null,"Ù","Fuel Substitution Measure Requirements\nIf this is a fuel substitution measure, did it pass the fuel substitution test? (Y/N)"]
[null,null,null,null,"See the Fuel Substitution Technical Guidance for Energy Efficiency issued by the CPUC.  A link to this reference can be found on the Tools page of the Cal TF website."]
[null,null,null,null,"http://www.caltf.org/tools"]
[]
[null,{"$f":"B24+1","v":5},null,null,"Data Requirements\nDescribe data and information that should be collected (during implementation or as separate study) to validate assumptions (such as existing conditions, specific operating assumptions, etc.) that will support a future measure update. Explain how and when data should be collected and indicate potential per site costs, if known."]
[null,null,null,null,"Enter text."]

{"sheet":"5. Parameters","index":6,"n_rows":33,"n_cols":8,"rows_kept":33,"cut":false,"hidden":false,"merged":[[13,10,13,11],[0,2,0,7],[2,2,2,7],[32,5,32,7],[18,5,18,7],[9,5,9,7],[10,5,10,7],[11,5,11,7],[28,4,28,7],[4,2,4,7],[3,2,3,7],[21,6,21,7],[22,6,22,7],[20,4,20,7]]}
[null,null,"5. Parameters"]
[]
[null,null,"Parameters are used to characterize individual measure permutations that qualify energy savings and demand impacts and (in some cases) costs. On this tab indicate the various parameters that describe the proposed measure and all of its permutations. \n\n"]
[null,null,"Many of the parameters on this tab can be found in shared data tables in the eTRM. Click on the link below to log in to the CA eTRM then click on the Shared Data link on the navigation bar on the left. "]
[null,null,"https://www.caetrm.com"]
[]
[null,null,null,"Ù Indicates required field for preliminary cost effectiveness analysis."]
[]
[null,null,null,null,"Implementation Parameters"]
[null,{"$f":"B9+1","v":1},"Ù",null,"Sector(s)\n(Check all that apply.)"]
[null,{"$f":"B10+1","v":2},"Ù",null,"Measure application type(s)\n(Choose ALL that apply from dropdown list.)"]
[null,{"$f":"B11+1","v":3},"Ù",null,"Delivery type(s)\n(Select all that apply from dropdown list.)"]
[null,null,null,null,null,"Select ID","Value","Source"]
[null,{"$f":"B12+1","v":4},null,null,"Gross savings installation adjustment factor (GSIA) (Select GSIA ID.)",null,{"$f":"IF(ISBLANK($F$14),\"\",INDEX('Value Tables'!$N$2:$N$431,MATCH('5. Parameters'!$F$14,'Value Tables'!$M$2:$M$431,0)))","v":""},"If GSIA is not available, enter proposed value and source here. "]
[null,{"$f":"B14+1","v":5},"Ù",null,"Net-to-gross ratio (NTGR) (Select NTG ID)",null,{"$f":"IF(ISBLANK($F$15), \"\", INDEX('Value Tables'!$J$2:$J$101,MATCH('5. Parameters'!$F$15, 'Value Tables'!$I$2:$I$101,0)))","v":""},"If NTGR is not available, enter proposed value and source here. "]
[]
[null,null,null,null,"Climate Zones "]
[null,{"$f":"B15+1","v":6},"Ù",null,"Is this measure applicable in all 16 California climate zones? (Y/N)"]
[null,{"$f":"B18+1","v":7},null,null,"If no, identify the climate zone(s) in which measure is not applicable and explain.","Enter text."]
[]
[null,null,null,null,"Building Type(s) and Vintage(s)\nClick the \"Select\" button to make all selections then click the \"Close\" button. To change your selection or start over, click the \"Select\" button again. DO NOT clear the contents in the cell."]
[null,{"$f":"B19+1","v":8},"Ù",null,"Select ALL applicable building types.",null,{"$f":"IFERROR(LEFT('Building Type'!$E$1,LEN('Building Type'!E1)-2), \"\")","v":""}]
[null,{"$f":"B22+1","v":9},"Ù",null,"Select ALL applicable building vintages.",null,{"$f":"IFERROR(LEFT('Building Vintage'!$E$1,LEN('Building Vintage'!$E$1)-2), \"\")","v":""}]
[]
[null,null,null,null,"Load Profile"]
[null,{"$f":"B23+1","v":10},"Ù",null,"Indicate the electric savings load profile and source. (Pick ID)",null,null,"Enter source if not on statewide load profile list."]
[null,{"$f":"B26+1","v":11},"Ù",null,"Indicate the gas savings load profile and source. (Pick ID)",null,null,"Enter source if not on statewide load profile list."]
[]
[null,null,null,null,"Life Cycle\nEnter the proposed EUL and EUL ID. If a value and ID is not already identified for this technology/equipment type, enter source for the proposed value."]
[null,null,null,null,null,"Select ID","Value (yrs)","Source"]
[null,{"$f":"B27+1","v":12},"Ù",null,"Effective useful life (EUL) (Pick EUL ID.)",null,{"$f":"IF(ISBLANK($F$31), \"\", INDEX('Value Tables'!$B$2:$B$307,MATCH('5. Parameters'!$F$31, 'Value Tables'!$A$2:$A$307,0)))","v":""},"If EUL is not available, enter proposed value and source here. "]
[null,{"$f":"B31+1","v":13},"Ù",null,"Remaining useful life (RUL) (Pick RUL ID.)\n(RUL is only required for measure application type of Accelerated Replacement, AR).",null,{"$f":"IF(ISBLANK($F$32), \"\", INDEX('Value Tables'!$F$2:$F$245,MATCH('5. Parameters'!$F$32, 'Value Tables'!$E$2:$E$245,0)))","v":""},"If RUL is not available, enter proposed value and source here. "]
[null,{"$f":"B32+1","v":14},null,null,"Describe the typical manufacturer warranty and duration for this proposed measure \n(if applicable).","Enter text."]

{"sheet":"Building Type","index":7,"n_rows":59,"n_cols":5,"rows_kept":59,"cut":false,"hidden":true,"merged":[[0,1,0,3]]}
[null,"Building Type Choices:",null,null,{"$f":"_xlfn.CONCAT(E2:E59)","v":""}]
[false,null,"Any","CC-All Subsectors",{"$f":"IF(A2=TRUE, C2&\", \", \"\")","v":""}]
[null,null,"AgOth","Ag-Other Agricultural",{"$f":"IF(A3=TRUE, C3&\", \", \"\")","v":""}]
[false,null,"ALF","Ag-Livestock Farms",""]
[false,null,"APF","Ag-Agricultural Produce Farms",""]
[false,null,"Asm","Com-Assembly",""]
[false,null,"Cnc","Com-Health/Medical - Clinics",""]
[false,null,"Com","Com-Commercial",""]
[false,null,"CRe","Com-Municipal - City Parks/Recreations",""]
[false,null,"Dat","Com-Data Center",""]
[false,null,"DMo","Res-Residential Mobile Home",""]
[false,null,"ECC","Com-Education - Community College",""]
[false,null,"EPr","Com-Education - Primary School",""]
[false,null,"ERC","Com-Education - Relocatable Classroom",""]
[false,null,"ESe","Com-Education - Secondary School",""]
[null,null,"EUD","Com-University Dormitory",""]
[false,null,"EUn","Com-Education - University",""]
[false,null,"Fhc","Com-FItness Center - Private Health Club",""]
[false,null,"GHs","Ag-Greenhouse",""]
[null,null,"Gro","Com-Grocery",""]
[null,null,"Gst","Com-Lodging - Guest Room",""]
[false,null,"HGR","Com-Hotel Guest Room",""]
[false,null,"Hsp","Com-Health/Medical - Hospital",""]
[false,null,"Htl","Com-Lodging - Hotel",""]
[null,null,"IAT","Ind-Transportation Equipment",""]
[null,null,"IBM","Ind-Manufacturing Beverage",""]
[null,null,"ICP","Ind-Chemical Processing",""]
[null,null,"ICS","Ind-Manufacturing Cement/Stone",""]
[null,null,"IFP","Ind-Food Processing",""]
[null,null,"IGM","Ind-Manufacturing Glass",""]
[null,null,"IGP","Ind-Gas Production",""]
[null,null,"IndOth","Ind-Other Industrial",""]
[null,null,"IPe","Ind-Petroleum",""]
[null,null,"IPH","Ind-Manufacturing Pharmaceutical",""]
[null,null,"IPM","Ind-Manufacturing Plastics",""]
[null,null,"MBT","Ind-Manufacturing Biotech",""]
[null,null,"MCE","Ind-Manufacturing Electronics",""]
[null,null,"MFm","Res-Residential Multi-family",""]
[false,null,"MFmCmn","Res-Residential Multi-family Common Area",""]
[null,null,"MLI","Ind-Manufacturing Light Industrial",""]
[null,null,"MPF","Ind-Metal Production and Fabrication",""]
[null,null,"Mtl","Com-Lodging - Motel",""]
[null,null,"Nrs","Com-Health/Medical - Nursing Home",""]
[null,null,"OfL","Com-Office - Large",""]
[false,null,"OfS","Com-Office - Small",""]
[null,null,"Res","Res-Residential",""]
[false,null,"RFF","Com-Restaurant - Fast-Food",""]
[null,null,"RSD","Com-Restaurant - Sit-Down",""]
[false,null,"Rt3","Com-Retail - Multistory Large",""]
[null,null,"RtL","Com-Retail - Single-Story Large",""]
[false,null,"RtS","Com-Retail - Small",""]
[false,null,"SCn","Com-Storage - Conditioned",""]
[null,null,"SFm","Res-Residential Single Family",""]
[null,null,"SMo","Res-Single-wide Mobile Home",""]
[null,null,"SUn","Com-Storage - Unconditioned",""]
[null,null,"Sup","Com-Supermarket",""]
[null,null,"VPr","Ag-Vinyards and Processing",""]
[null,null,"WRf","Com-Warehouse - Refrigerated",""]
[false,null,"WWT","Ind-Water Waste Treatment",""]

{"sheet":"Building Type (2)","index":8,"n_rows":31,"n_cols":14,"rows_kept":31,"cut":false,"hidden":true,"merged":[[0,0,0,1],[0,3,0,4],[0,6,0,7],[0,9,0,10],[0,12,0,13]]}
["All Subsector",null,null,"Agricultural Sector",null,null,"Commercial Sector",null,null,"Industrial Sector",null,null,"Residential Sector"]
["Any","CC-All Subsectors",null,"AgOth","Ag-Other Agricultural",null,"Asm","Com-Assembly",null,"IAT","Ind-Transportation Equipment",null,"DMo","Res-Residential Mobile Home"]
[null,null,null,"ALF","Ag-Livestock Farms",null,"Cnc","Com-Health/Medical - Clinics",null,"IBM","Ind-Manufacturing Beverage",null,"MFm","Res-Residential Multi-family"]
[null,null,null,"APF","Ag-Agricultural Produce Farms",null,"Com","Com-Commercial",null,"ICP","Ind-Chemical Processing",null,"MFmCmn","Res-Residential Multi-family Common Area"]
[null,null,null,"GHs","Ag-Greenhouse",null,"CRe","Com-Municipal - City Parks/Recreations",null,"ICS","Ind-Manufacturing Cement/Stone",null,"Res","Res-Residential"]
[null,null,null,"VPr","Ag-Vinyards and Processing",null,"Dat","Com-Data Center",null,"IFP","Ind-Food Processing",null,"SFm","Res-Residential Single Family"]
[null,null,null,null,null,null,"ECC","Com-Education - Community College",null,"IGM","Ind-Manufacturing Glass",null,"SMo","Res-Single-wide Mobile Home"]
[null,null,null,null,null,null,"EPr","Com-Education - Primary School",null,"IGP","Ind-Gas Production"]
[null,null,null,null,null,null,"ERC","Com-Education - Relocatable Classroom",null,"IndOth","Ind-Other Industrial"]
[null,null,null,null,null,null,"ESe","Com-Education - Secondary School",null,"IPe","Ind-Petroleum"]
[null,null,null,null,null,null,"EUD","Com-University Dormitory",null,"IPH","Ind-Manufacturing Pharmaceutical"]
[null,null,null,null,null,null,"EUn","Com-Education - University",null,"IPM","Ind-Manufacturing Plastics"]
[null,null,null,null,null,null,"Fhc","Com-FItness Center - Private Health Club",null,"MBT","Ind-Manufacturing Biotech"]
[null,null,null,null,null,null,"Gro","Com-Grocery",null,"MCE","Ind-Manufacturing Electronics"]
[null,null,null,null,null,null,"Gst","Com-Lodging - Guest Room",null,"MLI","Ind-Manufacturing Light Industrial"]
[null,null,null,null,null,null,"HGR","Com-Hotel Guest Room",null,"MPF","Ind-Metal Production and Fabrication"]
[null,null,null,null,null,null,"Hsp","Com-Health/Medical - Hospital",null,"WWT","Ind-Water Waste Treatment"]
[null,null,null,null,null,null,"Htl","Com-Lodging - Hotel"]
[null,null,null,null,null,null,"Mtl","Com-Lodging - Motel"]
[null,null,null,null,null,null,"Nrs","Com-Health/Medical - Nursing Home"]
[null,null,null,null,null,null,"OfL","Com-Office - Large"]
[null,null,null,null,null,null,"OfS","Com-Office - Small"]
[null,null,null,null,null,null,"RFF","Com-Restaurant - Fast-Food"]
[null,null,null,null,null,null,"RSD","Com-Restaurant - Sit-Down"]
[null,null,null,null,null,null,"Rt3","Com-Retail - Multistory Large"]
[null,null,null,null,null,null,"RtL","Com-Retail - Single-Story Large"]
[null,null,null,null,null,null,"RtS","Com-Retail - Small"]
[null,null,null,null,null,null,"SCn","Com-Storage - Conditioned"]
[null,null,null,null,null,null,"SUn","Com-Storage - Unconditioned"]
[null,null,null,null,null,null,"Sup","Com-Supermarket"]
[null,null,null,null,null,null,"WRf","Com-Warehouse - Refrigerated"]

{"sheet":"Building Vintage","index":9,"n_rows":26,"n_cols":5,"rows_kept":26,"cut":false,"hidden":true,"merged":[[0,1,0,3]]}
[null,"Building Vintage Choices:",null,null,{"$f":"_xlfn.CONCAT(E2:E59)","v":""}]
[false,null,1975,"Before 1978",{"$f":"IF(A2=TRUE, C2&\", \", \"\")","v":""}]
[false,null,1985,"1978 - 1992",""]
[false,null,1996,"1993 - 2001",""]
[false,null,2003,"2002 - 2005",""]
[false,null,2007,"2006 - 2009",""]
[null,null,2011,"2010 - 2013",""]
[null,null,2014,"2014 - 2015",""]
[null,null,2015,"2014 - 2016",""]
[null,null,2017,"2017-2019",""]
[null,null,2020,2020,""]
[false,null,5,"After 2005",""]
[false,null,"Any","Any Vintage",""]
[false,null,"Ex","Existing \\ Median Age",""]
[false,null,"MH00","MH: 1995 - 2005",""]
[null,null,"MH06","MH: 2006 - 2014",""]
[null,null,"MH15","MH: after 2014",""]
[null,null,"MH72","MH: Before 1976",""]
[null,null,"MH85","MH: 1976 - 1994",""]
[false,null,"New","New Construction",""]
[false,null,"old","Old",""]
[null,null,"PGx","PGE Existing",""]
[false,null,"rec","Recent",""]
[null,null,"SCx","SCE Existing",""]
[null,null,"SDx","SDGE Existing",""]
[false,null,"SGx","SCG Existing",""]

{"sheet":"6. Impacts","index":10,"n_rows":61,"n_cols":8,"rows_kept":61,"cut":false,"hidden":false,"merged":[[17,5,17,6],[34,5,34,6],[11,4,11,6],[29,4,29,7],[32,5,32,6],[33,5,33,6],[31,4,31,6],[21,4,21,6],[26,5,26,6],[27,5,27,6],[30,4,30,7],[0,2,0,7],[24,5,24,6],[25,5,25,6],[9,4,9,7],[10,4,10,7],[19,4,19,7],[20,4,20,7],[12,5,12,6],[13,5,13,6],[14,5,14,6],[15,5,15,6],[22,5,22,6],[23,5,23,6],[16,5,16,6],[7,5,7,7],[2,2,2,7],[60,4,60,7],[35,5,35,6],[36,5,36,6],[37,5,37,6],[42,3,42,7],[59,4,59,7],[57,4,57,7]]}
[null,null,"6a. Per-unit Energy Savings and Demand Reduction"]
[]
[null,null,"On this tab you will explain the methodology to derive the per unit energy savings and demand reduction values, and will enter the values for each measure offering."]
[]
[null,null,null,"Ù Indicates required field for preliminary cost effectiveness analysis."]
[]
[null,null,null,null,"Normalizing Unit"]
[null,{"$f":"B5+1","v":1},"Ù",null,"Select normalizing unit"]
[]
[null,{"$f":"B8+1","v":2},null,"Ù Indicates required field.","Electric Savings (kWh) Estimation Method\nExplain the method to estimate the electric unit energy savings for this measure. "]
[null,null,null,null,"Enter text."]
[null,{"$f":"B10+1","v":3},null,null,"List key inputs and assumptions and associated references below. \nAdd additional rows if necessary."]
[null,null,null,null,"Enter input/assumption.","Enter reference"]
[]
[]
[]
[]
[]
[]
[null,{"$f":"B12+1","v":4},null,"Ù Indicates required field.","Peak Demand Reduction (kW) Estimation Method\nExplain the methodology to calculate the per unit peak demand reduction for this measure. "]
[null,null,null,null,"Enter text."]
[null,{"$f":"B20+1","v":5},null,null,"List key inputs and assumptions and associated references below. \nAdd additional rows if necessary."]
[null,null,null,null,"Enter input/assumption.","Enter reference"]
[]
[]
[]
[]
[]
[]
[null,{"$f":"B22+1","v":6},null,"Ù Indicates required field.","Gas Savings (therms) Estimation Method.\nExplain the methodology to calculate the gas unit energy savings for this measure. "]
[null,null,null,null,"Enter text."]
[null,{"$f":"B30+1","v":7},null,null,"List key inputs and assumptions and associated references below. \nAdd additional rows if necessary."]
[null,null,null,null,"Enter input/assumption.","Enter reference"]
[]
[]
[]
[]
[]
[]
[]
[null,null,null,"6b. Energy Savings and Demand Reduction Values"]
[]
[null,null,null,"Enter the estimated per-unit energy savings (kWh and therms) and demand reduction (kW) values for each measure offering.  \nA measure offering is defined by a unique combination of characteristics for which energy and demand impacts vary. Measure offerings are typically distinguished by key drivers of energy use.  For example, savings and therefore measure offerings are typically defined by equipment efficiency level, and/or equipment size/capacity. "]
[]
[null,{"$f":"B32+1","v":8},null,"Ù Indicates required field.","Measure Offering Description\nAdd additional rows if needed.","Elec Savings (kWh/unit)","Demand Reduction (kW/unit)","Gas Savings (therms/unit)"]
[null,null,null,"A","Enter text."]
[null,null,null,"B"]
[null,null,null,"C"]
[null,null,null,"D"]
[null,null,null,"E"]
[null,null,null,"F"]
[null,null,null,"G"]
[null,null,null,"H"]
[null,null,null,"I"]
[]
[null,null,null,"6c. Non-energy Impacts"]
[]
[null,null,null,null,"Describe any non-energy impacts (benefits or risks) 'that could result from the proposed measure (reduced water consumption, health benefits/risks, increased productivity, performance risks, etc.) "]
[]
[null,{"$f":"B45+1","v":9},null,null,"Non-energy Impacts\nExplain any non-energy impacts and if the non-energy impacts are quantifiable or have been quantified."]
[null,null,null,null,"Enter text."]

{"sheet":"7. Costs","index":11,"n_rows":26,"n_cols":12,"rows_kept":26,"cut":false,"hidden":false,"merged":[[15,4,16,4],[15,5,15,6],[15,8,15,9],[14,4,14,11],[0,2,0,11],[2,2,2,11],[8,4,8,11],[12,4,12,11],[9,4,9,11],[11,4,11,11],[6,4,6,7]]}
[null,null,"7. Per-unit Material and Labor Costs"]
[]
[null,null,"On this tab you will explain the methodology to derive the per unit material and labor costs, and will enter the values for each measure offering."]
[]
[null,null,null,"Ù Indicates required field for preliminary cost effectiveness analysis."]
[]
[null,{"$f":"B5+1","v":1},null,null,"Normalizing Unit\nAre the costs normalized to the same unit as the savings and demand reduction on Tab 6? (Y/N)"]
[]
[null,{"$f":"B7+1","v":2},null,"Ù Indicates required field.","Base Case and Measure Case Material Methodology\nExplain the methodology and list the data sources to calculate the base case and measure case material costs. "]
[null,null,null,null,"Enter text."]
[]
[null,{"$f":"B9+1","v":3},null,"Ù Indicates required field.","Base Case and Measure Case Labor Cost Methodology\nExplain the data sources and methodology to calculate the base case and measure case labor costs. "]
[null,null,null,null,"Enter text."]
[]
[null,{"$f":"B12+1","v":4},null,"Ù Indicates required field.","Cost Values\nProvide the estimated per-unit material and labor costs below. "]
[null,null,null,null,"Measure Offering:\n(autofills from Impact Values tab)","Base Case",null,null,"Measure Case"]
[null,{"$f":"B12+1","v":4},null,null,null,"Material Cost ($/unit)","Labor Cost ($/unit)",null,"Material Cost ($/unit)","Labor Cost ($/unit)","Full Measure Cost ($/unit)","Incremental Measure Cost (IMC) ($/unit)"]
[null,null,null,"A",{"$f":"'6. Impacts'!E46","v":"Enter text."},null,null,null,null,null,{"$f":"F18+G18","v":0},{"$f":"SUM(I18:J18)-(SUM(F18:G18))","v":0}]
[null,null,null,"B",{"$f":"'6. Impacts'!E47","v":0},null,null,null,null,null,{"$f":"F19+G19","v":0},{"$f":"SUM(I19:J19)-(SUM(F19:G19))","v":0}]
[null,null,null,"C",{"$f":"'6. Impacts'!E48","v":0},null,null,null,null,null,0,0]
[null,null,null,"D",{"$f":"'6. Impacts'!E49","v":0},null,null,null,null,null,0,0]
[null,null,null,"E",{"$f":"'6. Impacts'!E50","v":0},null,null,null,null,null,0,0]
[null,null,null,"F",{"$f":"'6. Impacts'!E51","v":0},null,null,null,null,null,0,0]
[null,null,null,"G",{"$f":"'6. Impacts'!E52","v":0},null,null,null,null,null,0,0]
[null,null,null,"H",{"$f":"'6. Impacts'!E53","v":0},null,null,null,null,null,0,0]
[null,null,null,"I",{"$f":"'6. Impacts'!E54","v":0},null,null,null,null,null,0,0]

{"sheet":"8. Cost Effectiveness","index":12,"n_rows":24,"n_cols":7,"rows_kept":24,"cut":false,"hidden":false,"merged":[[23,3,23,9],[22,3,22,9],[10,4,10,6],[0,2,0,4],[2,2,2,9],[5,2,5,9],[6,2,6,9],[3,2,3,9]]}
[null,null,"8. Cost Effectiveness"]
[]
[null,null,"Estimate the total resource cost (TRC) cost effectiveness test for the proposed measure and provide results below for each measure offering.\nThe Cost Effectiveness Tool (CET) is the only approved calculator for the IOU portfolios. "]
[null,null,"Click here to create an account and access the CET."]
[]
[null,null,"Assume zero admin, marketing, and DINI costs in the Program Costs file."]
[null,null,"Submit your CET input and output files with this form."]
[]
[null,null,null,"Ù Indicates required field for preliminary cost effectiveness analysis."]
[]
[null,1,null,"Ù Indicates required field.","Provide the TRC calculated at the program level and/or for each measure offering."]
[null,null,null,null,"Program level TRC",null,"Enter value"]
[null,null,null,"A",{"$f":"'6. Impacts'!E46","v":"Enter text."},null,"Enter value"]
[null,null,null,"B",{"$f":"'6. Impacts'!E47","v":0},null,"Enter value"]
[null,null,null,"C",{"$f":"'6. Impacts'!E48","v":0},null,"Enter value"]
[null,null,null,"D",{"$f":"'6. Impacts'!E49","v":0},null,"Enter value"]
[null,null,null,"E",{"$f":"'6. Impacts'!E50","v":0},null,"Enter value"]
[null,null,null,"F",{"$f":"'6. Impacts'!E51","v":0},null,"Enter value"]
[null,null,null,"G",{"$f":"'6. Impacts'!E52","v":0},null,"Enter value"]
[null,null,null,"H",{"$f":"'6. Impacts'!E53","v":0},null,"Enter value"]
[null,null,null,"I",{"$f":"'6. Impacts'!E54","v":0},null,"Enter value"]
[]
[null,2,null,"Provide any comments or assumptions regarding the TRC calculations below."]
[null,null,null,"Enter text."]

{"sheet":"9. References and Resources","index":13,"n_rows":9,"n_cols":7,"rows_kept":9,"cut":false,"hidden":false,"merged":[[0,2,0,6],[2,2,2,6]]}
[null,null,"9a.  References and Resources"]
[]
[null,null,"On this tab list all references and data sources you have or intend to use to develop this measure.  Include any workpapers of approved measures, emerging technologies studies, or case study of the proposed measure in a custom project. Submit references with this form if possible."]
[]
[null,null,null,"Ù Indicates required field for preliminary cost effectiveness analysis."]
[]
[null,1,null,null,"Reference\nAdd additional rows if necessary.","Explain how reference was/will be used for this measure analysis. \nIndicate tab and item #. \nIndicate if reference is publicly available.","Indicate if reference is submitted with this form. (Y/N)\n"]
[null,null,null,"Ù Indicates required field.","CET input and output files","Preliminary TRC calculation"]
[null,null,null,null,"Enter reference.","Enter text."]

{"sheet":"Drop Down List Choices","index":14,"n_rows":32,"n_cols":15,"rows_kept":32,"cut":false,"hidden":true,"merged":[]}
[]
["Phone Num Choices",null,"Is Fuel Sub Measure Choices",null,"Sector Choices",null,"Meas App Type Choices",null,"Delivery Type Choices",null,"Norm Unit Choices",null,"Electric Load Shape Choices",null,"Gas Load Shape ID"]
["Office",null,"Yes",null,"Any",null,"AOE : Add-on Equipment",null,"DnDeemDI : Downstream deemed direct install",null,"Area-100Win : 100 sqft window",null,"New Electric Load Profile",null,"New Gas Load Profile"]
["Mobile",null,"No",null,"Residential",null,"AR : Accelerated Replacement",null,"DnDeemed : Downstream deemed",null,"Area-1kFP : 1,000 sqft footprint",null,"DEER:HVAC_Chillers",null,"Annual"]
[null,null,"Not Applicable",null,"Agricultural",null,"NC : New Construction",null,"UpDeemed : Upstream deemed",null,"Area-1kH : 1,000 sqft house",null,"DEER:HVAC_Duct_Sealing",null,"SummerOnly"]
[null,null,null,null,"Commercial",null,"NR : Normal Replacement (includes Replace on Burnout)",null,null,null,"Area-1kR : 1,000 sqft roof",null,"DEER:HVAC_Eff_AC",null,"WinterOnly"]
[null,null,null,null,"Industrial",null,"BRO-Bhv : BRO-Behavioral",null,null,null,"Area-1kW : 1,000 sqft wall (exc. windows)",null,"DEER:HVAC_Eff_HP"]
[null,null,null,null,null,null,"BRO-Op : BRO-Operational",null,null,null,"Area-Acre : per Acre",null,"DEER:HVAC_Refrig_Charge"]
[null,null,null,null,null,null,"BRO-RCx : BRO-Retrocommissioning",null,null,null,"Area-ft2 : square feet of technology",null,"DEER:HVAC_Split-Package_AC"]
[null,null,null,null,null,null,"BW : Building Weatherization",null,null,null,"Area-ft2-BA : square feet of Building area",null,"DEER:HVAC_Split-Package_HP"]
["Funding Source Choices",null,"Fuel Sub Choices 2",null,null,null,null,null,null,null,"Building : building associated with the technology",null,"DEER:Indoor_CFL_Ltg"]
["IOU",null,"Yes",null,null,null,null,null,null,null,"Cap-kBTUh : kBTUh of input capacity",null,"DEER:Indoor_Non-CFL_Ltg"]
["POU",null,"No",null,null,null,null,null,null,null,"Cap-kW : kW of input capacity",null,"DEER:Refg_Chrg_Duct_Seal"]
["3P",null,"Not Sure",null,null,null,null,null,null,null,"Cap-MBTUh : MBTUh of input capacity",null,"DEER:RefgFrzr_HighEff"]
[null,null,null,null,null,null,null,null,null,null,"Cap-Tons : ton of cooling capacity",null,"DEER:RefgFrzr_Recyc-Conditioned"]
[null,null,null,null,null,null,null,null,null,null,"Ctrl-kW : kW Controlled",null,"DEER:RefgFrzr_Recycling"]
[null,null,null,null,null,null,null,null,null,null,"Each : installation of technology",null,"DEER:RefgFrzr_Recyc-UnConditioned"]
[null,null,null,null,null,null,null,null,null,null,"Fixture : lighting or plumbing fixture",null,"DEER:Res_BldgShell_Ins"]
[null,null,null,null,null,null,null,null,null,null,"Flow-CFM : CFM of rated air flow",null,"DEER:Res_ClothesDishWasher"]
[null,null,null,null,null,null,null,null,null,null,"Flow-GPM : gallons per minute of rated flow"]
[null,null,null,null,null,null,null,null,null,null,"Household : dwelling or household"]
[null,null,null,null,null,null,null,null,null,null,"Installation : technology installation"]
[null,null,null,null,null,null,null,null,null,null,"KiloLumen : kiloLumens of light output"]
[null,null,null,null,null,null,null,null,null,null,"kW : kiloWatt demand"]
[null,null,null,null,null,null,null,null,null,null,"kWh : annual kWh consumption"]
[null,null,null,null,null,null,null,null,null,null,"kWreduced : kiloWatt demand reduction"]
[null,null,null,null,null,null,null,null,null,null,"Lamp : per lamp"]
[null,null,null,null,null,null,null,null,null,null,"Len-ft : length (feet)"]
[null,null,null,null,null,null,null,null,null,null,"Proc-lbs : Pounds of material processed"]
[null,null,null,null,null,null,null,null,null,null,"Rated-HP : nameplate HP"]
[null,null,null,null,null,null,null,null,null,null,"SurfArea-ft2 : surface area (ft2)"]
[null,null,null,null,null,null,null,null,null,null,"therm : annual therm consumption"]

{"sheet":"Value Tables","index":15,"n_rows":431,"n_cols":14,"rows_kept":431,"cut":false,"hidden":true,"merged":[]}
["EUL ID Choices","EUL__EUL_Yrs",null,null,"RUL ID Choices","hostEulAndRul__RUL_Yrs",null,null,"shared__NTGID","netToGrossRatio__NTGRkWh",null,null,"GSIAID","GSIA__GSIA"]
["New EUL ID","---",null,null,"New RUL ID","---",null,null,"New NTG ID","---",null,null,"New GSIA ID","---"]
["Agr-DripIrr : Sprinkler to Drip/Micro Irrigation",20,null,null,"Same as EUL ID",{"$f":"ROUND('5. Parameters'!$G$31/3,2)","v":{"$error":"#VALUE!"}},null,null,"All-Default<=2yrs",0.7,null,null,"Def-GSIA",1]
["Agr-GHC : Greenhouse Heat Curtain",5,null,null,"Agr-DripIrr : Sprinkler to Drip/Micro Irrigation",6.7,null,null,"Agric-Default>2yrs",0.6,null,null,"Com-AC-PGE",1]
["Agr-Irfilm : Infrared Film for Greenhouses",5,null,null,"Agr-GHC : Greenhouse Heat Curtain",1.7,null,null,"Com-Default>2yrs",0.6,null,null,"Com-AC-SCE",1]
["Agr-LPSNperm : Low Pressure Sprinkler Nozzles (permanent)",5,null,null,"Agr-Irfilm : Infrared Film for Greenhouses",1.7,null,null,"Ind-Default>2yrs",0.6,null,null,"Com-AC-SDG",1]
["Agr-LPSNport : Low Pressure Sprinkler Nozzles (portable)",3,null,null,"Agr-LPSNperm : Low Pressure Sprinkler Nozzles (permanent)",1.7,null,null,"Res-Default>2",0.55000000000000004,null,null,"Com-CFL-All",0.69099999999999995]
["Agr-MilkPreCool : Milk Pre-Cooler",15,null,null,"Agr-LPSNport : Low Pressure Sprinkler Nozzles (portable)",1,null,null,"ET-Default",0.85,null,null,"Com-CFL-PGE",0.77]
["Agr-VSDWellPmp : Well Pump Variable Speed Drive",10,null,null,"Agr-MilkPreCool : Milk Pre-Cooler",5,null,null,"FuelSubst-Default",1,null,null,"Com-CFL-PGE-2016",0.91]
["Agr-VSDmilkTrnsfr : Milk Transfer Pump Variable Speed Drive",15,null,null,"Agr-VSDWellPmp : Well Pump Variable Speed Drive",3.3,null,null,"Agric-Sprklr-All",0.5,null,null,"Com-CFL-PGE-2017",0.85]
["Agr-VSDmilkVcm : Milking Vacuum Pump Variable Speed Drive",15,null,null,"Agr-VSDmilkTrnsfr : Milk Transfer Pump Variable Speed Drive",5,null,null,"Agricult-Default-HTR-di",0.85,null,null,"Com-CFL-PGE-2021",0.98]
["Agr-WineTnkIns : Wine Tank Insulation",15,null,null,"Agr-VSDmilkVcm : Milking Vacuum Pump Variable Speed Drive",5,null,null,"All-Ltg-LED-WRR",0.91,null,null,"Com-CFL-PGE-2054",0.83]
["AppPlug-AllEquip-Audio : Energy Star Audio Equipment",3,null,null,"Agr-WineTnkIns : Wine Tank Insulation",5,null,null,"All-Ltg-ScrwInLED",0.91,null,null,"Com-CFL-PGE-2060",0.93]
["AppPlug-AllEquip-BRDVD : Energy Star Blu-Ray/DVD Equipment",3,null,null,"AppPlug-AllEquip-Audio : Energy Star Audio Equipment",1,null,null,"Com-Default-HTR-di",0.85,null,null,"Com-CFL-PGE-2080",0.74]
["AppPlug-DesktopComp : Residential Desktop Computers",5,null,null,"AppPlug-AllEquip-BRDVD : Energy Star Blu-Ray/DVD Equipment",1,null,null,"Com-InHB-Ltg-LEDFixt",0.91,null,null,"Com-CFL-SCE",0.61]
["AppPlug-TV : Residential Use Energy Efficient TV",10,null,null,"AppPlug-DesktopComp : Residential Desktop Computers",1.67,null,null,"Com-Out-Ltg-LEDFixt",0.91,null,null,"Com-CFL-SCE-2511",0.67]
["Appl-DW-Dtu : Commercial Door-type dishwasher ",15,null,null,"AppPlug-TV : Residential Use Energy Efficient TV",3.33,null,null,"ConstrainedAreaProgram",0.85,null,null,"Com-CFL-SCE-2517",0.6]
["Appl-ESFrzr : High Efficiency Freezer",11,null,null,"Appl-DW-Dtu : Commercial Door-type dishwasher ",5,null,null,"EUC-Default",0.7,null,null,"Com-CFL-SDG",0.83]
["Appl-ESRefg : High Efficiency Refrigerator",14,null,null,"Appl-ESFrzr : High Efficiency Freezer",3.7,null,null,"Ind-Default-HTR-di",0.85,null,null,"Com-CFL-SDG-3012",0.99]
["Appl-EffCD : Clothes Dryer",12,null,null,"Appl-ESRefg : High Efficiency Refrigerator",4.7,null,null,"K-12School-ComCollege",0.85,null,null,"Com-CFL-SDG-3020",0.67]
["Appl-EffCW : High Efficiency Clothes Washer",11,null,null,"Appl-EffCD : Clothes Dryer",4,null,null,"NonRes-HVAC-maint",0.45,null,null,"Com-HiBay-All",0.93700000000000006]
["Appl-EffDW : High Efficiency Dishwasher",11,null,null,"Appl-EffCW : High Efficiency Clothes Washer",3.7,null,null,"NonRes-In-Ltg-LEDFixt",0.91,null,null,"Com-HiBay-PGE",0.92]
["BS-BlowInIns : Wall Insulation (blown-in)",20,null,null,"Appl-EffDW : High Efficiency Dishwasher",3.7,null,null,"NonRes-Out-Ltg-LEDFixt",0.91,null,null,"Com-HiBay-SCE",0.93]
["BS-CeilIns : Roof/Ceiling Insulation - Residential",20,null,null,"Appl-RecFrzr : Freezer Recycling (RUL)",4,null,null,"NonRes-sAg-mCust-ci",0.7,null,null,"Com-HiBay-SDG",1]
["BS-CoolAttic : Cool Attic",20,null,null,"Appl-RecRef : Refrigerator Recycling (RUL)",5,null,null,"NonRes-sAll-MLtgLED-Deemed",0.6,null,null,"Com-Hibay-SDG-3012",1.04]
["BS-FlrIns : Floor Insulation - Residential",20,null,null,"BS-BlowInIns : Wall Insulation (blown-in)",6.7,null,null,"NonRes-sAll-NC",0.5,null,null,"Com-Hibay-SDG-3020",0.97]
["BS-LtRoof : Cool Roof - Residential",15,null,null,"BS-CeilIns : Roof/Ceiling Insulation - Residential",6.7,null,null,"NonRes-sAll-NMEC",0.95,null,null,"Com-LED-PGE",1]
["BS-LtWalls : Light Colored Exterior Walls",6,null,null,"BS-CoolAttic : Cool Attic",6.7,null,null,"NonRes-sAll-mCFL",0.85,null,null,"Com-LF-All",0.93400000000000005]
["BS-WallIns : Wall Insulation",20,null,null,"BS-FlrIns : Floor Insulation - Residential",6.7,null,null,"NonRes-sAll-mCFL-All",0.6,null,null,"Com-LF-PGE",0.92]
["BS-Win : High Performance Windows",20,null,null,"BS-LtRoof : Cool Roof - Residential",5,null,null,"NonRes-sAll-mCFL-ci",0.53,null,null,"Com-LF-PGE-2016",0.92]
["BS-WinFilm : Reflective Window Films & Sunscreens - Residential",10,null,null,"BS-LtWalls : Light Colored Exterior Walls",2,null,null,"NonRes-sAll-mCFL-dir",0.8,null,null,"Com-LF-PGE-2017",0.97]
["BS-Wthr : Low-Income Weatherization",11,null,null,"BS-WallIns : Wall Insulation",6.7,null,null,"NonRes-sAll-mCFL-dn",0.53,null,null,"Com-LF-PGE-2021",0.95]
["BS-WthrEvap : Low-Income Weatherization w/Evaporative Cooler",11,null,null,"BS-Win : High Performance Windows",6.7,null,null,"NonRes-sAll-mCust",0.6,null,null,"Com-LF-PGE-2054",0.98]
["BldgEnv-CoolRoof : Cool Roof - Commercial",15,null,null,"BS-WinFilm : Reflective Window Films & Sunscreens - Residential",3.3,null,null,"NonRes-sAll-mCust-Elec",0.6,null,null,"Com-LF-PGE-2080",0.88]
["BldgEnv-FlrIns : Floor Insulation - Commercial",20,null,null,"BS-Wthr : Low-Income Weatherization",3.7,null,null,"NonRes-sAll-mCust-Gas",0.5,null,null,"Com-LF-SCE",0.95]
["BldgEnv-RoofIns : Roof/Ceiling Insulation - Commercial",20,null,null,"BS-WthrEvap : Low-Income Weatherization w/Evaporative Cooler",3.7,null,null,"NonRes-sAll-mCustElec-bd",0.7,null,null,"Com-LF-SCE-2511",0.93]
["BlrTuneup : Boiler Tune-up",3,null,null,"BldgEnv-CoolRoof : Cool Roof - Commercial",5,null,null,"NonRes-sAll-mELtg-DnStrmDeemed",0.45,null,null,"Com-LF-SCE-2517",0.97]
["ComLau-EffCW : High Efficiency Clothes Washer (CEE Tiers 1,2,3)",11,null,null,"BldgEnv-FlrIns : Floor Insulation - Commercial",6.7,null,null,"NonRes-sAll-mHVAC-Chiller",0.57999999999999996,null,null,"Com-LF-SDG",0.9]
["CompAir-CycAirDryr : Compressed Air System - Cycling-Air Dryer",1,null,null,"BldgEnv-RoofIns : Roof/Ceiling Insulation - Commercial",6.7,null,null,"NonRes-sAll-mHVAC-DX-up",0.65,null,null,"Com-LF-SDG-3012",0.78]
["CompAir-Screw-VSD : Variable Speed Drive on Air Compressor Control",13,null,null,"BlrTuneup : Boiler Tune-up",1,null,null,"NonRes-sAll-mHVAC-Pkg",0.6,null,null,"Com-LF-SDG-3020",0.91]
["CompAir-ZeroLossCondDrn : Zero Air Loss Condensate Drains for Compressed Air Systems",10,null,null,"ComLau-EffCW : High Efficiency Clothes Washer (CEE Tiers 1,2,3)",3.7,null,null,"NonRes-sAll-mHVAC-RCA",0.73,null,null,"Com-RCA-All",0.63800000000000001]
["Cook-ConveyorBroiler : Gas Conveyor Broiler",12,null,null,"CompAir-CycAirDryr : Compressed Air System - Cycling-Air Dryer",1,null,null,"NonRes-sAll-mLEDARefl",0.91,null,null,"Com-RCA-PGE",0.57499999999999996]
["Cook-ElecCombOven : Combination Oven - Electric",12,null,null,"CompAir-Screw-VSD : Variable Speed Drive on Air Compressor Control",4.33,null,null,"NonRes-sAll-mLEDSpcl",0.6,null,null,"Com-RCA-PGE-2068",0.68]
["Cook-ElecConvOven : Convection Oven - Electric",12,null,null,"CompAir-ZeroLossCondDrn : Zero Air Loss Condensate Drains for Compressed Air Systems",3.33,null,null,"NonRes-sAll-mLFDL-Deemed",0.65,null,null,"Com-RCA-PGE-2080",0.45]
["Cook-ElecFryer : Electric Fryer",12,null,null,"Cook-ConveyorBroiler : Gas Conveyor Broiler",4,null,null,"NonRes-sAll-mLFHB-Deemed",0.65,null,null,"Com-RCA-SCE",0.67]
["Cook-ElecGriddle : Griddle - Electric",12,null,null,"Cook-ElecCombOven : Combination Oven - Electric",4,null,null,"NonRes-sAll-mLFHBT5-Deemed",0.65,null,null,"Com-RCA-SDG",0.67]
["Cook-ElecStmCooker : Steam Cooker (electric)",12,null,null,"Cook-ElecConvOven : Convection Oven - Electric",4,null,null,"NonRes-sAll-mLFOth-Deemed",0.6,null,null,"Def-GSIA",1]
["Cook-GDRef : Commercial Reach-In Refrigerator / Freezer",12,null,null,"Cook-ElecFryer : Electric Fryer",4,null,null,"NonRes-sAll-mLtg-ci",0.5,null,null,"EUC_GSIA_0.463",0.46300000000000002]
["Cook-GasCombOVen : Combination Oven - Gas",12,null,null,"Cook-ElecGriddle : Griddle - Electric",4,null,null,"NonRes-sAll-mLtgCtrl",0.6,null,null,"EUC_GSIA_0.504",0.504]
["Cook-GasConvOven : Convection Ovens - Gas",12,null,null,"Cook-ElecStmCooker : Steam Cooker (electric)",4,null,null,"NonRes-sAll-mLtgCtrl-htr",0.89,null,null,"EUC_GSIA_0.513",0.51300000000000001]
["Cook-GasFryer : Gas Fryer",12,null,null,"Cook-GDRef : Commercial Reach-In Refrigerator / Freezer",4,null,null,"NonRes-sAll-mOccSens",0.6,null,null,"EUC_GSIA_0.521",0.52100000000000002]
["Cook-GasGriddle : Griddle - Gas",12,null,null,"Cook-GasCombOVen : Combination Oven - Gas",4,null,null,"NonRes-sAll-mPOC",0.45,null,null,"EUC_GSIA_0.526",0.52600000000000002]
["Cook-GasRackOven : Commercial Gas Rack Ovens",12,null,null,"Cook-GasConvOven : Convection Ovens - Gas",4,null,null,"NonRes-sAll-mPipeIns",0.71,null,null,"EUC_GSIA_0.541",0.54100000000000004]
["Cook-GasStmCooker : Steam Cooker (gas)",12,null,null,"Cook-GasFryer : Gas Fryer",4,null,null,"NonRes-sAll-mPipeIns-ci",0.45,null,null,"EUC_GSIA_0.555",0.55500000000000005]
["Cook-HoldCab : Commercial Insulated Holding Cabinet",12,null,null,"Cook-GasGriddle : Griddle - Gas",4,null,null,"NonRes-sAll-mPipeIns-deemed",0.45,null,null,"EUC_GSIA_0.558",0.55800000000000005]
["Cook-IceMach : Ice Machine",10,null,null,"Cook-GasRackOven : Commercial Gas Rack Ovens",4,null,null,"NonRes-sAll-mPmpTst",0.63,null,null,"EUC_GSIA_0.568",0.56799999999999995]
["Cook-LowPreRinse : Low flow Pre-rinse valve - description update required",5,null,null,"Cook-GasStmCooker : Steam Cooker (gas)",4,null,null,"NonRes-sAll-mRCx-ci",0.8,null,null,"EUC_GSIA_0.586",0.58599999999999997]
["Cook-SDFreez : Commercial Reach-In Refrigerator / Freezer",12,null,null,"Cook-HoldCab : Commercial Insulated Holding Cabinet",4,null,null,"NonRes-sAll-mRCx-dn",0.8,null,null,"EUC_GSIA_0.59",0.59]
["Cook-SDRef : Commercial Reach-In Refrigerator / Freezer",12,null,null,"Cook-IceMach : Ice Machine",3.3,null,null,"NonRes-sAll-mRfg-DG",0.19,null,null,"EUC_GSIA_0.595",0.59499999999999997]
["Cook-StockPot : Fin bottomed stock pot",3,null,null,"Cook-LowPreRinse : Low flow Pre-rinse valve - description update required",1.7,null,null,"NonRes-sAll-mRfg-SC",0.4,null,null,"EUC_GSIA_0.598",0.59799999999999998]
["Cook-VatFryer : Vat Fryer",12,null,null,"Cook-SDFreez : Commercial Reach-In Refrigerator / Freezer",4,null,null,"NonRes-sAll-mStmTrp-ci",0.52,null,null,"EUC_GSIA_0.599",0.59899999999999998]
["EnergyPolicyManual-Min : Energy Policy Manual minimum requirements",3,null,null,"Cook-SDRef : Commercial Reach-In Refrigerator / Freezer",4,null,null,"NonRes-sAll-mStmTrp-dn",0.68,null,null,"EUC_GSIA_0.601",0.60099999999999998]
["FoodHandWrap : Hand wrapping machine used in food service",10,null,null,"Cook-StockPot : Fin bottomed stock pot",1,null,null,"NonRes-sAll-mT5T8-ci",0.7,null,null,"EUC_GSIA_0.603",0.60299999999999998]
["GlazDaylt-Dayltg : Daylighting - controls",8,null,null,"Cook-VatFryer : Vat Fryer",4,null,null,"NonRes-sAll-mT5T8-dn",0.7,null,null,"EUC_GSIA_0.609",0.60899999999999999]
["GlazDaylt-HPWinDaylt : High Performance Windows for Daylighting",20,null,null,"EnergyPolicyManual-Min : Energy Policy Manual minimum requirements",1,null,null,"NonRes-sAll-mT8-dir",0.89,null,null,"EUC_GSIA_0.611",0.61099999999999999]
["GlazDaylt-LoSHGC : Low Solar Heat Gain Coefficient Windows",20,null,null,"FoodHandWrap : Hand wrapping machine used in food service",3.33,null,null,"NonRes-sGHS-mHtCrtn-ci",0.63,null,null,"EUC_GSIA_0.612",0.61199999999999999]
["GlazDaylt-WinFilm : Reflective Window Films & Sunscreens - Commercial",10,null,null,"GlazDaylt-Dayltg : Daylighting - controls",2.7,null,null,"NonRes-sGHS-mHtCrtn-dn",0.63,null,null,"EUC_GSIA_0.617",0.61699999999999999]
["GrocDisp-ASH : Anti-Sweat Heat (ASH) Controls",12,null,null,"GlazDaylt-HPWinDaylt : High Performance Windows for Daylighting",6.7,null,null,"NonRes-sGHS-mIRF-ci",0.46,null,null,"EUC_GSIA_0.62",0.62]
["GrocDisp-DispCvrs : Night Covers for vertical and horizontal refrigerated display cases",5,null,null,"GlazDaylt-LoSHGC : Low Solar Heat Gain Coefficient Windows",6.7,null,null,"NonRes-sGHS-mIRF-dn",0.46,null,null,"EUC_GSIA_0.622",0.622]
["GrocDisp-DispLtgCtrl : Display Case Lighting Control",8,null,null,"GlazDaylt-WinFilm : Reflective Window Films & Sunscreens - Commercial",3.3,null,null,"RCT-Default",1,null,null,"EUC_GSIA_0.624",0.624]
["GrocDisp-FEvapFanMtr : High Efficiency Evaporator Fan Motors",15,null,null,"GrocDisp-ASH : Anti-Sweat Heat (ASH) Controls",4,null,null,"Res-Default-HTR-di",0.85,null,null,"EUC_GSIA_0.625",0.625]
["GrocDisp-FixtDoors : New case with Doors",12,null,null,"GrocDisp-DispCvrs : Night Covers for vertical and horizontal refrigerated display cases",1.7,null,null,"Res-InCmn-Ltg-LEDFixt",0.91,null,null,"EUC_GSIA_0.628",0.628]
["GrocDisp-FixtDrGask : Door Gaskets on Cooler/Freezer Doors",3,null,null,"GrocDisp-DispLtgCtrl : Display Case Lighting Control",2.7,null,null,"Res-OutCmn-Ltg-LEDFixt",0.91,null,null,"EUC_GSIA_0.631",0.63100000000000001]
["GrocDisp-FixtLtg-LED : Display Case Lighting LED Lighting",16,null,null,"GrocDisp-FEvapFanMtr : High Efficiency Evaporator Fan Motors",5,null,null,"Res-mDHWaerator",0.59,null,null,"EUC_GSIA_0.632",0.63200000000000001]
["GrocDisp-ZeroHtDrs : Zero Heat Reach-in Glass Doors",12,null,null,"GrocDisp-FixtDoors : New case with Doors",4,null,null,"Res-mDHWaerator-MF",0.65,null,null,"EUC_GSIA_0.636",0.63600000000000001]
["GrocSys-Cndsr : Refrigeration Upgrades (Condenser) - Grocery",15,null,null,"GrocDisp-FixtDrGask : Door Gaskets on Cooler/Freezer Doors",1,null,null,"Res-sAll-MLtgLED-Deemed",0.6,null,null,"EUC_GSIA_0.642",0.64200000000000002]
["GrocSys-FltHdPres : Refrigeration Upgrades (Head Pressure) - Grocery",15,null,null,"GrocDisp-FixtLtg-LED : Display Case Lighting LED Lighting",5.3,null,null,"Res-sAll-mCFL",0.85,null,null,"EUC_GSIA_0.644",0.64400000000000002]
["GrocSys-FltSucPres : Refrigeration Upgrades (Suction Pressure) - Grocery",15,null,null,"GrocDisp-ZeroHtDrs : Zero Heat Reach-in Glass Doors",4,null,null,"Res-sAll-mCFL-up",0.9,null,null,"EUC_GSIA_0.647",0.64700000000000002]
["GrocSys-HtRecov : Heat Recovery from Central Refrigeration System",10,null,null,"GrocSys-Cndsr : Refrigeration Upgrades (Condenser) - Grocery",5,null,null,"Res-sAll-mCFLgt30w-up",0.54,null,null,"EUC_GSIA_0.648",0.64800000000000002]
["GrocSys-MechSubcl : Refrigeration  Upgrades (Subcooling) - Grocery",15,null,null,"GrocSys-FltHdPres : Refrigeration Upgrades (Head Pressure) - Grocery",5,null,null,"Res-sAll-mCFLlte30w-up",0.9,null,null,"EUC_GSIA_0.65",0.65]
["GrocSys-Retro : Refrigeration Retrocommissioning - Grocery",3,null,null,"GrocSys-FltSucPres : Refrigeration Upgrades (Suction Pressure) - Grocery",5,null,null,"Res-sAll-mCW",0.31,null,null,"EUC_GSIA_0.662",0.66200000000000003]
["GrocWlkIn-DrClsr : Auto-Closer for Walk-In Cooler/Freezer Doors",8,null,null,"GrocSys-HtRecov : Heat Recovery from Central Refrigeration System",3.3,null,null,"Res-sAll-mDHWgt62",0.23,null,null,"EUC_GSIA_0.664",0.66400000000000003]
["GrocWlkIn-StripCrtn : Strip Curtains for Walk-Ins",4,null,null,"GrocSys-MechSubcl : Refrigeration  Upgrades (Subcooling) - Grocery",5,null,null,"Res-sAll-mDHWshwr",0.7,null,null,"EUC_GSIA_0.673",0.67300000000000004]
["GrocWlkIn-WDrGask : Door Gaskets on Cooler/Freezer Doors",4,null,null,"GrocSys-Retro : Refrigeration Retrocommissioning - Grocery",1,null,null,"Res-sAll-mDuctSeal",0.78,null,null,"EUC_GSIA_0.674",0.67400000000000004]
["GrocWlkIn-WEvapFMtrCtrl : Evaporator Fan Controller for Walk-In Coolers",16,null,null,"GrocWlkIn-DrClsr : Auto-Closer for Walk-In Cooler/Freezer Doors",2.7,null,null,"Res-sAll-mELtg-DnStrmDeemed",0.45,null,null,"EUC_GSIA_0.675",0.67500000000000004]
["GrocWlkIn-WEvapFanMtr : High Efficiency Evaporator Fan Motors",15,null,null,"GrocWlkIn-StripCrtn : Strip Curtains for Walk-Ins",1.3,null,null,"Res-sAll-mFrzrRec",0.95,null,null,"EUC_GSIA_0.678",0.67800000000000005]
["HV-BFMotor : Brushless Fan Motor",5,null,null,"GrocWlkIn-WDrGask : Door Gaskets on Cooler/Freezer Doors",1.3,null,null,"Res-sAll-mHVAC-DX-up",0.65,null,null,"EUC_GSIA_0.681",0.68100000000000005]
["HV-CoggedBelt-Asm : Cogged Fan Belt",4.7,null,null,"GrocWlkIn-WEvapFMtrCtrl : Evaporator Fan Controller for Walk-In Coolers",5.3,null,null,"Res-sAll-mHVAC-Pkg-dn",0.6,null,null,"EUC_GSIA_0.682",0.68200000000000005]
["HV-CoggedBelt-ECC : Cogged Fan Belt",5,null,null,"GrocWlkIn-WEvapFanMtr : High Efficiency Evaporator Fan Motors",5,null,null,"Res-sAll-mHVAC-RCA",0.78,null,null,"EUC_GSIA_0.685",0.68500000000000005]
["HV-CoggedBelt-EPr : Cogged Fan Belt",5,null,null,"HV-BFMotor : Brushless Fan Motor",1.67,null,null,"Res-sAll-mHVAC-RmAC-dn",0.36,null,null,"EUC_GSIA_0.688",0.68799999999999994]
["HV-CoggedBelt-ESe : Cogged Fan Belt",5,null,null,"HV-CoggedBelt-Asm : Cogged Fan Belt - Assembly building",1.6,null,null,"Res-sAll-mLEDARefl",0.91,null,null,"EUC_GSIA_0.689",0.68899999999999995]
["HV-CoggedBelt-MLI : Cogged Fan Belt",5,null,null,"HV-CoggedBelt-ECC : Cogged Fan Belt - Community College",1.7,null,null,"Res-sAll-mLEDSpcl",0.6,null,null,"EUC_GSIA_0.69",0.69]
["HV-CoggedBelt-Nrs : Cogged Fan Belt",2.7,null,null,"HV-CoggedBelt-EPr : Cogged Fan Belt - Primary School",1.7,null,null,"Res-sAll-mRefgRec",0.8,null,null,"EUC_GSIA_0.691",0.69099999999999995]
["HV-CoggedBelt-OfL : Cogged Fan Belt",5,null,null,"HV-CoggedBelt-ESe : Cogged Fan Belt - Secondary School",1.7,null,null,"Res-sMF-NMEC",0.55000000000000004,null,null,"EUC_GSIA_0.693",0.69299999999999995]
["HV-CoggedBelt-OfS : Cogged Fan Belt",5,null,null,"HV-CoggedBelt-MLI : Cogged Fan Belt - Manufacturing Light Industrial",1.7,null,null,"Res-sSF-NMEC",0.85,null,null,"EUC_GSIA_0.694",0.69399999999999995]
["HV-CoggedBelt-RFF : Cogged Fan Belt",3.5,null,null,"HV-CoggedBelt-Nrs : Cogged Fan Belt - Nursing Home",0.9,null,null,"Res-sSF-mACgt14-dn",0.55000000000000004,null,null,"EUC_GSIA_0.696",0.69599999999999995]
["HV-CoggedBelt-RSD : Cogged Fan Belt",4.7,null,null,"HV-CoggedBelt-OfL : Cogged Fan Belt - Large Office",1.7,null,null,"Res-sSF-mACgt16-dn",0.8,null,null,"EUC_GSIA_0.697",0.69699999999999995]
["HV-CoggedBelt-Rt3 : Cogged Fan Belt",5,null,null,"HV-CoggedBelt-OfS : Cogged Fan Belt - Small Office",1.7,null,null,"Res-sSF-mHPes",0.55000000000000004,null,null,"EUC_GSIA_0.7",0.7]
["HV-CoggedBelt-RtL : Cogged Fan Belt",4.4000000000000004,null,null,"HV-CoggedBelt-RFF : Cogged Fan Belt - Fast food restaurant",1.2,null,null,"Res-sSF-mShellIns",0.28000000000000003,null,null,"EUC_GSIA_0.703",0.70299999999999996]
["HV-CoggedBelt-RtS : Cogged Fan Belt",5,null,null,"HV-CoggedBelt-RSD : Cogged Fan Belt - Sit-Down Restaurant",1.6,null,null,"SEM-Default",1,null,null,"EUC_GSIA_0.704",0.70399999999999996]
["HV-DuctSeal : Duct Sealing",3,null,null,"HV-CoggedBelt-Rt3 : Cogged Fan Belt - Multistory Large Retail",1.7,null,null,"TV-UpStream",0.1,null,null,"EUC_GSIA_0.706",0.70599999999999996]
["HV-EffFurn : High Efficiency Furnace",20,null,null,"HV-CoggedBelt-RtL : Cogged Fan Belt - Single Story Large Retail",1.5,null,null,null,null,null,null,"EUC_GSIA_0.707",0.70699999999999996]
["HV-Evap : Evaporative Cooler",15,null,null,"HV-CoggedBelt-RtS : Cogged Fan Belt - Small Retail",1.7,null,null,null,null,null,null,"EUC_GSIA_0.708",0.70799999999999996]
["HV-ProgTstat : Programmable Thermostat",11,null,null,"HV-DuctSeal : Duct Sealing",1,null,null,null,null,null,null,"EUC_GSIA_0.709",0.70899999999999996]
["HV-RAC-ES : Room AC - Energy Star",9,null,null,"HV-EffFurn : High Efficiency Furnace",6.7,null,null,null,null,null,null,"EUC_GSIA_0.71",0.71]
["HV-RefChrg : Refrigerant Charge - Residential",3,null,null,"HV-Evap : Evaporative Cooler",5,null,null,null,null,null,null,"EUC_GSIA_0.713",0.71299999999999997]
["HV-ResAC : High Efficiency Air Conditioner (package and split systems)",15,null,null,"HV-ProgTstat : Programmable Thermostat",3.7,null,null,null,null,null,null,"EUC_GSIA_0.714",0.71399999999999997]
["HV-ResAC-CleanCoil : Clean Condenser Coils - Residential",3,null,null,"HV-RAC-ES : Room AC - Energy Star",3,null,null,null,null,null,null,"EUC_GSIA_0.715",0.71499999999999997]
["HV-ResEvapAC : High Efficiency Air Conditioner (Evap cooled split systems)",15,null,null,"HV-RAC-RUL : Room AC - Recycling (RUL)",3,null,null,null,null,null,null,"EUC_GSIA_0.716",0.71599999999999997]
["HV-ResHP : High Efficiency Heat Pump",15,null,null,"HV-RefChrg : Refrigerant Charge - Residential",1,null,null,null,null,null,null,"EUC_GSIA_0.718",0.71799999999999997]
["HV-WHfan : Whole House Fans",20,null,null,"HV-ResAC : High Efficiency Air Conditioner (package and split systems)",5,null,null,null,null,null,null,"EUC_GSIA_0.719",0.71899999999999997]
["HVAC-2Spd : Two-Speed Fan",15,null,null,"HV-ResAC-CleanCoil : Clean Condenser Coils - Residential",1,null,null,null,null,null,null,"EUC_GSIA_0.721",0.72099999999999997]
["HVAC-AtoAHtExchng : Air To Air Heat Exchanger",14,null,null,"HV-ResEvapAC : High Efficiency Air Conditioner (Evap cooled split systems)",5,null,null,null,null,null,null,"EUC_GSIA_0.724",0.72399999999999998]
["HVAC-Blr : High Efficiency Boiler ",20,null,null,"HV-ResHP : High Efficiency Heat Pump",5,null,null,null,null,null,null,"EUC_GSIA_0.725",0.72499999999999998]
["HVAC-Blr-Res : High Efficiency Boiler ",20,null,null,"HV-WHfan : Whole House Fans",6.7,null,null,null,null,null,null,"EUC_GSIA_0.726",0.72599999999999998]
["HVAC-Chlr : High Efficiency Chillers",20,null,null,"HVAC-2Spd : Two-Speed Fan",5,null,null,null,null,null,null,"EUC_GSIA_0.728",0.72799999999999998]
["HVAC-ChlrComp : Compressor Heat Recovery (w/electric water heating)",14,null,null,"HVAC-AtoAHtExchng : Air To Air Heat Exchanger",4.7,null,null,null,null,null,null,"EUC_GSIA_0.729",0.72899999999999998]
["HVAC-ChlrComp-Ag : Compressor Heat Recovery (w/electric water heating)",14,null,null,"HVAC-Blr : High Efficiency Boiler ",6.7,null,null,null,null,null,null,"EUC_GSIA_0.73",0.73]
["HVAC-ClTwrPkgSys : Cooling Tower for Packaged System",15,null,null,"HVAC-Blr-Res : High Efficiency Boiler ",6.7,null,null,null,null,null,null,"EUC_GSIA_0.732",0.73199999999999998]
["HVAC-ClnCondCoils : Clean Condenser Coils - Commercial",3,null,null,"HVAC-Chlr : High Efficiency Chillers",6.7,null,null,null,null,null,null,"EUC_GSIA_0.734",0.73399999999999999]
["HVAC-ClnEvapCoils : Clean Evaporator Coils",3,null,null,"HVAC-ChlrComp : Compressor Heat Recovery (w/electric water heating)",4.7,null,null,null,null,null,null,"EUC_GSIA_0.736",0.73599999999999999]
["HVAC-DuctInsul : Duct Insulation Material",20,null,null,"HVAC-ChlrComp-Ag : Compressor Heat Recovery (w/electric water heating)",4.7,null,null,null,null,null,null,"EUC_GSIA_0.737",0.73699999999999999]
["HVAC-DuctSeal : Duct Sealing - Single Zone Package System",3,null,null,"HVAC-ClTwrPkgSys : Cooling Tower for Packaged System",5,null,null,null,null,null,null,"EUC_GSIA_0.738",0.73799999999999999]
["HVAC-EMS : Energy Management System",15,null,null,"HVAC-ClnCondCoils : Clean Condenser Coils - Commercial",1,null,null,null,null,null,null,"EUC_GSIA_0.739",0.73899999999999999]
["HVAC-EvapCool : Evap Cool  Indirect",15,null,null,"HVAC-ClnEvapCoils : Clean Evaporator Coils",1,null,null,null,null,null,null,"EUC_GSIA_0.74",0.74]
["HVAC-FanPwrdMix : Fan Powered Mixing Boxes",10,null,null,"HVAC-DuctInsul : Duct Insulation Material",6.7,null,null,null,null,null,null,"EUC_GSIA_0.741",0.74099999999999999]
["HVAC-FlowCtrl-AirFiltCtrls : Air Filter Alarm",5,null,null,"HVAC-DuctSeal : Duct Sealing - Single Zone Package System",1,null,null,null,null,null,null,"EUC_GSIA_0.743",0.74299999999999999]
["HVAC-Frnc : High Efficiency Furnace",20,null,null,"HVAC-EMS : Energy Management System",5,null,null,null,null,null,null,"EUC_GSIA_0.744",0.74399999999999999]
["HVAC-HydHPVarFlow : Hydronic Heat Pump Var Flow Valve",10,null,null,"HVAC-EvapCool : Evap Cool  Indirect",5,null,null,null,null,null,null,"EUC_GSIA_0.746",0.746]
["HVAC-PTAC : Air Conditioners (packaged terminal AC)",15,null,null,"HVAC-FanPwrdMix : Fan Powered Mixing Boxes",3.3,null,null,null,null,null,null,"EUC_GSIA_0.747",0.747]
["HVAC-PTACCtrl : Package Terminal AC - Controller",15,null,null,"HVAC-FlowCtrl-AirFiltCtrls : Air Filter Alarm",1.67,null,null,null,null,null,null,"EUC_GSIA_0.749",0.749]
["HVAC-PTHP : Heat Pumps (packaged terminal)",15,null,null,"HVAC-Frnc : High Efficiency Furnace",6.7,null,null,null,null,null,null,"EUC_GSIA_0.75",0.75]
["HVAC-ProgTStats : Setback Programmable Thermostats",11,null,null,"HVAC-HydHPVarFlow : Hydronic Heat Pump Var Flow Valve",3.3,null,null,null,null,null,null,"EUC_GSIA_0.751",0.751]
["HVAC-QMPkg : Quality Maintenance",3,null,null,"HVAC-PTAC : Air Conditioners (packaged terminal AC)",5,null,null,null,null,null,null,"EUC_GSIA_0.752",0.752]
["HVAC-RedcOverVent : Reducing Overventilation",10,null,null,"HVAC-PTACCtrl : Package Terminal AC - Controller",5,null,null,null,null,null,null,"EUC_GSIA_0.753",0.753]
["HVAC-RefChg : Refrigerant Charge - Commercial",3,null,null,"HVAC-PTHP : Heat Pumps (packaged terminal)",5,null,null,null,null,null,null,"EUC_GSIA_0.755",0.755]
["HVAC-RepEcono : Repair Economizer",3,null,null,"HVAC-ProgTStats : Setback Programmable Thermostats",3.7,null,null,null,null,null,null,"EUC_GSIA_0.757",0.75700000000000001]
["HVAC-Reset : Water Loop Reset",10,null,null,"HVAC-QMPkg : Quality Maintenance",1,null,null,null,null,null,null,"EUC_GSIA_0.758",0.75800000000000001]
["HVAC-RotHtRecov : Rotary Heat Recovery",14,null,null,"HVAC-RedcOverVent : Reducing Overventilation",3.3,null,null,null,null,null,null,"EUC_GSIA_0.759",0.75900000000000001]
["HVAC-StmTrp : Steam Traps - Space Heating",3,null,null,"HVAC-RefChg : Refrigerant Charge - Commercial",1,null,null,null,null,null,null,"EUC_GSIA_0.762",0.76200000000000001]
["HVAC-Timeclocks : Time Clocks (heating/cooling)",11,null,null,"HVAC-RepEcono : Repair Economizer",1,null,null,null,null,null,null,"EUC_GSIA_0.763",0.76300000000000001]
["HVAC-VAVBox : Variable Air Volume Box, VSD Fan",15,null,null,"HVAC-Reset : Water Loop Reset",3.3,null,null,null,null,null,null,"EUC_GSIA_0.765",0.76500000000000001]
["HVAC-VSD-DCV : Variable Speed Drive controlled by CO2 sensor",15,null,null,"HVAC-RotHtRecov : Rotary Heat Recovery",4.7,null,null,null,null,null,null,"EUC_GSIA_0.766",0.76600000000000001]
["HVAC-VSD-fan : Variable Air Volume Box, VSD Fan",15,null,null,"HVAC-StmTrp : Steam Traps - Space Heating",3,null,null,null,null,null,null,"EUC_GSIA_0.768",0.76800000000000002]
["HVAC-VSD-pump : Variable Flow Water Loop, VSD Pump",15,null,null,"HVAC-Timeclocks : Time Clocks (heating/cooling)",3.7,null,null,null,null,null,null,"EUC_GSIA_0.769",0.76900000000000002]
["HVAC-VSDSupFan : VSD Supply Fan Motors",15,null,null,"HVAC-VAVBox : Variable Air Volume Box, VSD Fan",5,null,null,null,null,null,null,"EUC_GSIA_0.77",0.77]
["HVAC-VarFlow : Hydronic Heat Pump Var Flow Valve",10,null,null,"HVAC-VSD-DCV : Variable Speed Drive controlled by CO2 sensor",5,null,null,null,null,null,null,"EUC_GSIA_0.771",0.77100000000000002]
["HVAC-WSHP : High Efficiency Water Source Heat Pump",15,null,null,"HVAC-VSD-fan : Variable Air Volume Box, VSD Fan",5,null,null,null,null,null,null,"EUC_GSIA_0.772",0.77200000000000002]
["HVAC-WtrEcon : Water Side Economizer",15,null,null,"HVAC-VSD-pump : Variable Flow Water Loop, VSD Pump",5,null,null,null,null,null,null,"EUC_GSIA_0.775",0.77500000000000002]
["HVAC-airAC : Air Conditioners (air-cooled, split and unitary)",15,null,null,"HVAC-VSDSupFan : VSD Supply Fan Motors",5,null,null,null,null,null,null,"EUC_GSIA_0.776",0.77600000000000002]
["HVAC-airHP : Heat Pumps (air-cooled, split and unitary)",15,null,null,"HVAC-VarFlow : Hydronic Heat Pump Var Flow Valve",3.3,null,null,null,null,null,null,"EUC_GSIA_0.777",0.77700000000000002]
["HVAC-evapAC : Air Conditioners (evaporatively-cooled, split and unitary)",15,null,null,"HVAC-WSHP : High Efficiency Water Source Heat Pump",5,null,null,null,null,null,null,"EUC_GSIA_0.778",0.77800000000000002]
["HVAC-wtrAC : Air Conditioners (water-cooled, split and unitary)",15,null,null,"HVAC-WtrEcon : Water Side Economizer",5,null,null,null,null,null,null,"EUC_GSIA_0.779",0.77900000000000003]
["ILtg-CFL-12000hr-Com : CFL Lamps - Indoor- Commercial - 12,000 Rated Hours","Max Yrs = 15",null,null,"HVAC-airAC : Air Conditioners (air-cooled, split and unitary)",5,null,null,null,null,null,null,"EUC_GSIA_0.78",0.78]
["ILtg-CFL-12000hr-ResCmn : CFL Lamps - Indoor- Residential Common Area- 12,000 Rated Hours","Max Yrs = 20",null,null,"HVAC-airHP : Heat Pumps (air-cooled, split and unitary)",5,null,null,null,null,null,null,"EUC_GSIA_0.781",0.78100000000000003]
["ILtg-CFL-6000hr-Com : CFL Lamps - Indoor- Commercial - 6,000 Rated Hours","Max Yrs = 15",null,null,"HVAC-evapAC : Air Conditioners (evaporatively-cooled, split and unitary)",5,null,null,null,null,null,null,"EUC_GSIA_0.782",0.78200000000000003]
["ILtg-CFL-6000hr-ResCmn : CFL Lamps - Indoor- Residential Common Area- 6,000 Rated Hours","Max Yrs = 20",null,null,"HVAC-wtrAC : Air Conditioners (water-cooled, split and unitary)",5,null,null,null,null,null,null,"EUC_GSIA_0.783",0.78300000000000003]
["ILtg-CFL-8000hr-Com : CFL Lamps - Indoor- Commercial - 8,000 Rated Hours","Max Yrs = 15",null,null,"ILtg-CFL-Res : CFL Lamps - Indoor- Residential",1.2,null,null,null,null,null,null,"EUC_GSIA_0.784",0.78400000000000003]
["ILtg-CFL-8000hr-ResCmn : CFL Lamps - Indoor- Residential Common Area- 8,000 Rated Hours","Max Yrs = 20",null,null,"ILtg-CFLfix-Com : CFL Fixtures - Indoor- Commercial",4,null,null,null,null,null,null,"EUC_GSIA_0.785",0.78500000000000003]
["ILtg-CFL-Com : CFL Lamps - Indoor- Commercial - 10,000 Rated Hours","Max Yrs = 15",null,null,"ILtg-CFLfix-Res : CFL Fixtures - Indoor - Residential",5.33,null,null,null,null,null,null,"EUC_GSIA_0.788",0.78800000000000003]
["ILtg-CFL-Res : CFL Lamps - Indoor- Residential",3.5,null,null,"ILtg-CFLfix-ResCmnArea : CFL Fixtures - Indoor - Residential Common Area",5,null,null,null,null,null,null,"EUC_GSIA_0.79",0.79]
["ILtg-CFL-ResCmn : CFL Lamps - Indoor- Residential Common Area- 10,000 Rated Hours","Max Yrs = 20",null,null,"ILtg-Com-LED-50000hr+16yr : LED Fixture - Indoor - Commercial",5.3,null,null,null,null,null,null,"EUC_GSIA_0.791",0.79100000000000004]
["ILtg-CFLfix-Com : CFL Fixtures - Indoor- Commercial",12,null,null,"ILtg-Exit : Exit Lighting",5.3,null,null,null,null,null,null,"EUC_GSIA_0.792",0.79200000000000004]
["ILtg-CFLfix-Res : CFL Fixtures - Indoor - Residential",16,null,null,"ILtg-LED : 0.3 W LED Night Light",5.3,null,null,null,null,null,null,"EUC_GSIA_0.793",0.79300000000000004]
["ILtg-CFLfix-ResCmnArea : CFL Fixtures - Indoor - Residential Common Area",15,null,null,"ILtg-LED-seas : LED Seasonal Light",5.3,null,null,null,null,null,null,"EUC_GSIA_0.794",0.79400000000000004]
["ILtg-Com-LED-15000hr : LED Lamp - Indoor- Commercial - Small wattage Globe, Any Candle shape","Max Yrs = 12",null,null,"ILtg-Lfluor-CommArea : Linear Fluorescents - Indoor Residential Common Area ",5,null,null,null,null,null,null,"EUC_GSIA_0.795",0.79500000000000004]
["ILtg-Com-LED-20000hr : LED Lamp - Indoor- Commercial","Max Yrs = 12",null,null,"ILtg-Lfluor-fix : Linear Fluorescent - Fixtures",5.3,null,null,null,null,null,null,"EUC_GSIA_0.796",0.79600000000000004]
["ILtg-Com-LED-50000hr : LED Fixture - Indoor- Commercial","Max Yrs = 12",null,null,"ILtg-OccSens : Occupancy Sensors",2.7,null,null,null,null,null,null,"EUC_GSIA_0.798",0.79800000000000004]
["ILtg-Com-LED-50000hr+16yr : LED Fixture - Indoor - Commercial",16,null,null,"ILtg-Res-LED-50000hr+12yr : LED Fixture - Indoor - Residential",4,null,null,null,null,null,null,"EUC_GSIA_0.799",0.79900000000000004]
["ILtg-Com-LED-Alamp-10000hr : LED A-Lamp - Indoor- Commercial","Max Yrs = 12",null,null,"ILtg-Res-LED-50000hr+16yr : LED Fixture - Indoor - Residential",5.3,null,null,null,null,null,null,"EUC_GSIA_0.8",0.8]
["ILtg-Exit : Exit Lighting",16,null,null,"ILtg-TmClck : Timeclocks",2.7,null,null,null,null,null,null,"EUC_GSIA_0.801",0.80100000000000005]
["ILtg-HID : HID Lighting - Any HID Fixture","Max Yrs = 15",null,null,"LED-Cooler : LED Lighting in Walk-in Coolers and Freezers",3.7,null,null,null,null,null,null,"EUC_GSIA_0.802",0.80200000000000005]
["ILtg-HID-Cmn : HID Lighting - Any Fixture - Residential Common Area","Max Yrs = 15",null,null,"LED-sign : LED Open Signs",5.3,null,null,null,null,null,null,"EUC_GSIA_0.803",0.80300000000000005]
["ILtg-HPS : HID Lighting - High Pressure Sodium","Max Yrs = 15",null,null,"LtgFixture-Default : Default EUL/RUL for lighting fixtures",5,null,null,null,null,null,null,"EUC_GSIA_0.805",0.80500000000000005]
["ILtg-Incand-Com : CFL Lamps - Indoor- Commercial - 10,000 Rated Hours","Max Yrs = 15",null,null,"Motors-HiEff : Premium-Efficiency Motors",5,null,null,null,null,null,null,"EUC_GSIA_0.806",0.80600000000000005]
["ILtg-Incand-Res : Incandescent Lamps - 2,000 Hour","Max Yrs = 15",null,null,"Motors-fan : HVAC Fan Motors",5,null,null,null,null,null,null,"EUC_GSIA_0.808",0.80800000000000005]
["ILtg-Induct-Elec : HID Lighting - Induction","Max Yrs = 15",null,null,"Motors-pump : Water Loop Pumps",5,null,null,null,null,null,null,"EUC_GSIA_0.809",0.80900000000000005]
["ILtg-LED : 0.3 W LED Night Light",16,null,null,"NonRes-RCx-Operational : retrocommissioning and operational programs in non residential settings",1,null,null,null,null,null,null,"EUC_GSIA_0.81",0.81]
["ILtg-LED-seas : LED Seasonal Light",16,null,null,"NonSav : EUL that can be specified for Non-savings measure claims so that they pass CEDARS",0,null,null,null,null,null,null,"EUC_GSIA_0.811",0.81100000000000005]
["ILtg-Lfluor-CommArea : Linear Fluorescents - Indoor Residential Common Area ",15,null,null,"OLtg-All-TmClk : Timeclock with or without photocell",2.7,null,null,null,null,null,null,"EUC_GSIA_0.812",0.81200000000000006]
["ILtg-Lfluor-Elec : Linear Fluorescent with Electronic Ballast","Max Yrs = 15",null,null,"OLtg-All-TmClkPhoto : Timeclock with or without photocell",2.7,null,null,null,null,null,null,"EUC_GSIA_0.813",0.81299999999999994]
["ILtg-Lfluor-Mag : Linear Fluorescent with Magnetic Ballast","Max Yrs = 15",null,null,"OLtg-CFL : CFL Lamps - Outdoor- Residential - 10,000 Rated Hours",1.2,null,null,null,null,null,null,"EUC_GSIA_0.814",0.81399999999999995]
["ILtg-Lfluor-T12Mag : Linear Fluorescent with T12 Lamp + Magnetic Ballast","Max Yrs = 15",null,null,"OLtg-CFL-Dusk-to-Dawn : CFL Lamps - Outdoor Dusk to Dawn Operation",0.76,null,null,null,null,null,null,"EUC_GSIA_0.815",0.81499999999999995]
["ILtg-Lfluor-fix : Linear Fluorescent - Fixtures",16,null,null,"OLtg-CFLfix : CFL Fixtures - Outdoor - Residential",5.3,null,null,null,null,null,null,"EUC_GSIA_0.816",0.81599999999999995]
["ILtg-MH : HID Lighting - Metal Halide","Max Yrs = 15",null,null,"OLtg-CFLfix-Dusk-to-Dawn : CFL Fixtures - Outdoor - Dusk to Dawn Operation",5,null,null,null,null,null,null,"EUC_GSIA_0.817",0.81699999999999995]
["ILtg-OccSens : Occupancy Sensors",8,null,null,"OLtg-CFLfix-ResCmnArea : CFL Fixtures - Outdoor - Residential Common Area",5,null,null,null,null,null,null,"EUC_GSIA_0.818",0.81799999999999995]
["ILtg-Res-LED-15000hr : LED lamp - Indoor - Residential - small wattage Globe, Any Candle shape","Max Yrs = 16",null,null,"OLtg-LEDfixt-Res : Outdoor LED Fixture replacement passed through from a 2013 3rd party PG&E workpaper (PGE3PLTG166).  This ID may not be used for any new measures. ",5,null,null,null,null,null,null,"EUC_GSIA_0.819",0.81899999999999995]
["ILtg-Res-LED-15000hr-Cmn : LED lamp - Indoor - Residential  Common Area - small wattage Globe, Any Candle shape","Max Yrs = 16",null,null,"OLtg-LFluor-Dusk-to-Dawn : Linear Fluorescents - Outdoor Dusk to Dawn operation",5,null,null,null,null,null,null,"EUC_GSIA_0.82",0.82]
["ILtg-Res-LED-20000hr : LED lamp - Indoor - Residential","Max Yrs = 16",null,null,"OLtg-TmClck : Timeclock with or without photocell",2.7,null,null,null,null,null,null,"EUC_GSIA_0.821",0.82099999999999995]
["ILtg-Res-LED-20000hr-Cmn : LED lamp - Indoor - Residential Common Area","Max Yrs = 16",null,null,"Oltg-LED : LED Lighting",4,null,null,null,null,null,null,"EUC_GSIA_0.822",0.82199999999999995]
["ILtg-Res-LED-50000hr : LED Fixture - Indoor - Residential","Max Yrs = 16",null,null,"OutD-PoolCover : Outdoor pool cover",1.7,null,null,null,null,null,null,"EUC_GSIA_0.823",0.82299999999999995]
["ILtg-Res-LED-50000hr+12yr : LED Fixture - Indoor - Residential",12,null,null,"OutD-PoolPump : High Efficiency Pool Pump",3.3,null,null,null,null,null,null,"EUC_GSIA_0.824",0.82399999999999995]
["ILtg-Res-LED-50000hr+16yr : LED Fixture - Indoor - Residential",16,null,null,"OzoneGen : Ozone Generator for commercial laundry",3.33,null,null,null,null,null,null,"EUC_GSIA_0.825",0.82499999999999996]
["ILtg-Res-LED-50000hr-Cmn : LED Fixture - Indoor - Residential Common Area","Max Yrs = 16",null,null,"Plug-80plus : 80 PLUS Power Supply",1.3,null,null,null,null,null,null,"EUC_GSIA_0.826",0.82599999999999996]
["ILtg-Res-LED-Alamp-10000hr : LED A-lamp - Indoor - Residential","Max Yrs = 16",null,null,"Plug-HiEffCopier : High Efficiency Copiers",2,null,null,null,null,null,null,"EUC_GSIA_0.827",0.82699999999999996]
["ILtg-Res-LED-Alamp-10000hr-Cmn : LED A-lamp - Indoor - Residential Common Area","Max Yrs = 16",null,null,"Plug-OccSens : Occupancy sensors",2.7,null,null,null,null,null,null,"EUC_GSIA_0.828",0.82799999999999996]
["ILtg-T5 : HID Lighting (T-5)","Max Yrs = 15",null,null,"Plug-Software : Power Management Software",1.7,null,null,null,null,null,null,"EUC_GSIA_0.829",0.82899999999999996]
["ILtg-TmClck : Timeclocks",8,null,null,"Plug-VendCtrler : Vending Machine Controller",1.7,null,null,null,null,null,null,"EUC_GSIA_0.83",0.83]
["Iltg-Com-CldCthd-25000hr : Iltg-Com-CldCthd-25000hr","Max Yrs = 15",null,null,"PrcHt-Blr : High Efficiency Boiler ",6.7,null,null,null,null,null,null,"EUC_GSIA_0.831",0.83099999999999996]
["LED-Cooler : LED Lighting in Walk-in Coolers and Freezers",11,null,null,"PrcHt-StmBlr : High Efficiency Boiler ",6.7,null,null,null,null,null,null,"EUC_GSIA_0.832",0.83199999999999996]
["LED-sign : LED Open Signs",16,null,null,"PrcHt-StmTrp : Steam Traps - Process Heat",1,null,null,null,null,null,null,"EUC_GSIA_0.833",0.83299999999999996]
["LtgFixture-Default : Default EUL/RUL for lighting fixtures",15,null,null,"PrcHt-TankIns-Gas : Water Heater Tank Wrap",2.2999999999999998,null,null,null,null,null,null,"EUC_GSIA_0.834",0.83399999999999996]
["Motors-HiEff : Premium-Efficiency Motors",15,null,null,"ProcDist-Motor_Spd : Variable Speed Drive on Process Fan Control",4.33,null,null,null,null,null,null,"EUC_GSIA_0.835",0.83499999999999996]
["Motors-fan : HVAC Fan Motors",15,null,null,"PumpCentBstr : Ag Pump - Centrifugal Booster",4.33,null,null,null,null,null,null,"EUC_GSIA_0.836",0.83599999999999997]
["Motors-pump : Water Loop Pumps",15,null,null,"PumpSubBstr : Ag Pump - Submersible Booster",2.77,null,null,null,null,null,null,"EUC_GSIA_0.837",0.83699999999999997]
["NonRes-Behavioral : behavioral programs in non residential settings",2,null,null,"PumpSubWell : Ag Pump - Submersible Well",2.23,null,null,null,null,null,null,"EUC_GSIA_0.838",0.83799999999999997]
["NonRes-RCx-Operational : retrocommissioning and operational programs in non residential settings",3,null,null,"PumpTurbBstr : Ag Pump - Turbine Booster",3.1,null,null,null,null,null,null,"EUC_GSIA_0.839",0.83899999999999997]
["NonSav : EUL that can be specified for Non-savings measure claims so that they pass CEDARS",0,null,null,"PumpTurbWell : Ag Pump - Turbine Well",2.27,null,null,null,null,null,null,"EUC_GSIA_0.84",0.84]
["OLtg-All-TmClk : Timeclock with or without photocell",8,null,null,"RTU-Retro : Rooftop Unit retrocommissioning",1,null,null,null,null,null,null,"EUC_GSIA_0.841",0.84099999999999997]
["OLtg-All-TmClkPhoto : Timeclock with or without photocell",8,null,null,"Recreate-LED_fixt-Com-DskCls : LED Pool Lighting (Dusk to Close)",4,null,null,null,null,null,null,"EUC_GSIA_0.842",0.84199999999999997]
["OLtg-CFL : CFL Lamps - Outdoor- Residential - 10,000 Rated Hours",3.5,null,null,"Recreate-LED_fixt-Com-DskDwn : LED Pool Lighting (Dusk to Dawn)",1.63,null,null,null,null,null,null,"EUC_GSIA_0.843",0.84299999999999997]
["OLtg-CFL-12000hr-Res : CFL Lamps - Outdoor- Residential - 12,000 Rated Hours","Max Yrs = 20",null,null,"Recreate-LED_fixt-Res : LED Pool Lighting (Residential)",5.33,null,null,null,null,null,null,"EUC_GSIA_0.844",0.84399999999999997]
["OLtg-CFL-12000hr-Res-Cmn : CFL Lamps - Outdoor- Residential Common Area - 12,000 Rated Hours","Max Yrs = 20",null,null,"RefgWrhs-Comp : Refrigeration Upgrades (Variable Speed Compressors)\n",5,null,null,null,null,null,null,"EUC_GSIA_0.845",0.84499999999999997]
["OLtg-CFL-6000hr-Res : CFL Lamps - Outdoor- Residential - 6,000 Rated Hours","Max Yrs = 20",null,null,"RefgWrhs-Cond : Refrigeration Upgrades (Condenser) - Refg Warehouse",5,null,null,null,null,null,null,"EUC_GSIA_0.846",0.84599999999999997]
["OLtg-CFL-6000hr-Res-Cmn : CFL Lamps - Outdoor- Residential Common Area - 6,000 Rated Hours","Max Yrs = 20",null,null,"RefgWrhs-FltHdPres : Refrigeration Upgrades (Suction Pressure) - Refg Warehouse",5,null,null,null,null,null,null,"EUC_GSIA_0.847",0.84699999999999998]
["OLtg-CFL-8000hr-Res : CFL Lamps - Outdoor- Residential - 8,000 Rated Hours","Max Yrs = 20",null,null,"RefgWrhs-FltSucPres : Refrigeration Upgrades (Head Pressure) - Refg Warehouse",5,null,null,null,null,null,null,"EUC_GSIA_0.848",0.84799999999999998]
["OLtg-CFL-8000hr-Res-Cmn : CFL Lamps - Outdoor- Residential Common Area - 8,000 Rated Hours","Max Yrs = 20",null,null,"RefgWrhs-Retro : Refrigeration Retrocommissioning - Refg Warehouse",1,null,null,null,null,null,null,"EUC_GSIA_0.849",0.84899999999999998]
["OLtg-CFL-Cmn : CFL Lamps - Outdoor- Residential Common Area - 10,000 Rated Hours","Max Yrs = 20",null,null,"RefgWrhs-SLIns : Refrigeration Insulation for Bare Suction Lines",3.7,null,null,null,null,null,null,"EUC_GSIA_0.85",0.85]
["OLtg-CFL-Dusk-to-Dawn : CFL Lamps - Outdoor Dusk to Dawn Operation",2.2799999999999998,null,null,"RefgWrhs-ScrollComp : Refrigeration Scroll Compressors for Bulk Tanks",4,null,null,null,null,null,null,"EUC_GSIA_0.851",0.85099999999999998]
["OLtg-CFLfix : CFL Fixtures - Outdoor - Residential",16,null,null,"RefgWrhs-SubClr : Refrigeration  Upgrades (Subcooling) - Refg Warehouse",5,null,null,null,null,null,null,"EUC_GSIA_0.852",0.85199999999999998]
["OLtg-CFLfix-Dusk-to-Dawn : CFL Fixtures - Outdoor - Dusk to Dawn Operation",15,null,null,"Reprog-Tstat : Reprogram thermostat",1,null,null,null,null,null,null,"EUC_GSIA_0.853",0.85299999999999998]
["OLtg-CFLfix-ResCmnArea : CFL Fixtures - Outdoor - Residential Common Area",15,null,null,"Res-AirCleaner : Room Air Cleaner",3,null,null,null,null,null,null,"EUC_GSIA_0.854",0.85399999999999998]
["OLtg-Com-LED-15000hr : LED lamp - Outdoor- Commercial - Small wattage Globe, Any Candle shape","Max Yrs = 12",null,null,"Res-Plug-AdvPwrStrip : Tier 2 Advanced Power Strip",1.67,null,null,null,null,null,null,"EUC_GSIA_0.855",0.85499999999999998]
["OLtg-Com-LED-20000hr : LED lamp - Outdoor- Commercial","Max Yrs = 12",null,null,"Res-Plug-Soundbar : Sound Bar",1.33,null,null,null,null,null,null,"EUC_GSIA_0.857",0.85699999999999998]
["OLtg-Com-LED-50000hr : LED Fixture - Outdoor- Commercial","Max Yrs = 12",null,null,"Res-RCx-Operational : retrocommissioning and operational programs in residential settings",1,null,null,null,null,null,null,"EUC_GSIA_0.858",0.85799999999999998]
["OLtg-Com-LED-Alamp-10000hr : LED A-lamp - Outdoor- Commercial","Max Yrs = 12",null,null,"SHW-EMS : Boiler controls for hot water",5,null,null,null,null,null,null,"EUC_GSIA_0.859",0.85899999999999999]
["OLtg-HID : Outdoor HID Lighting","Max Yrs = 15",null,null,"Service-ResEnergyAu : Residential Audits",1,null,null,null,null,null,null,"EUC_GSIA_0.861",0.86099999999999999]
["OLtg-HID-Cmn : Outdoor HID Lighting - Any Fixture - Residential Common Area","Max Yrs = 15",null,null,"WlHs-Upgrade : Whole House Upgrade",0.7,null,null,null,null,null,null,"EUC_GSIA_0.862",0.86199999999999999]
["OLtg-HPS : HID Lighting - High Pressure Sodium","Max Yrs = 15",null,null,"WtrHt-Com : Commercial water heater",5,null,null,null,null,null,null,"EUC_GSIA_0.863",0.86299999999999999]
["OLtg-Incand-Com : Incandescent Lamps - Outdoor- Commercial - 10,000 Rated Hours","Max Yrs = 15",null,null,"WtrHt-GPoolHtr : Commercial Pool Heater",1.7,null,null,null,null,null,null,"EUC_GSIA_0.864",0.86399999999999999]
["OLtg-Incand-Res : Incandescent Lamps - Outdoor- Residential - 2,000 Rated Hours","Max Yrs = 15",null,null,"WtrHt-HtPmp : Heat Pump Water Heater",3.3,null,null,null,null,null,null,"EUC_GSIA_0.865",0.86499999999999999]
["OLtg-Incand-Res-Cmn : Incandescent Lamps - Outdoor- Residential - 2,000 Rated Hours","Max Yrs = 15",null,null,"WtrHt-Instant-Com : Commercial Instantaneous Water Heater",6.67,null,null,null,null,null,null,"EUC_GSIA_0.866",0.86599999999999999]
["OLtg-Induct : HID Lighting - Induction","Max Yrs = 15",null,null,"WtrHt-Instant-Res : Residential Instantaneous Water Heater",6.67,null,null,null,null,null,null,"EUC_GSIA_0.868",0.86799999999999999]
["OLtg-LEDfixt-Res : Outdoor LED Fixture replacement passed through from a 2013 3rd party PG&E workpaper (PGE3PLTG166).  This ID may not be used for any new measures. ",15,null,null,"WtrHt-PipeIns-Elec : Pipe Insulation - Electric Water Heater",4.3,null,null,null,null,null,null,"EUC_GSIA_0.869",0.86899999999999999]
["OLtg-LFluor-Com : Outdoor Linear Fluorescent with Electronic Ballast","Max Yrs = 15",null,null,"WtrHt-PipeIns-Gas : Pipe Insulation - Gas Water Heater - Commercial",3.7,null,null,null,null,null,null,"EUC_GSIA_0.87",0.87]
["OLtg-LFluor-CommArea : Linear Fluorescents - Outdoor Residential Common Area","Max Yrs = 15",null,null,"WtrHt-Res-Elec : Residential Electric Water Heater",4.33,null,null,null,null,null,null,"EUC_GSIA_0.872",0.872]
["OLtg-LFluor-Dusk-to-Dawn : Linear Fluorescents - Outdoor Dusk to Dawn operation",15,null,null,"WtrHt-Res-Gas : Residential Gas Water Heater",3.67,null,null,null,null,null,null,"EUC_GSIA_0.873",0.873]
["OLtg-LFluor-Res : Linear Fluorescents - Home","Max Yrs = 15",null,null,"WtrHt-SWH : Solar Water Heating",5,null,null,null,null,null,null,"EUC_GSIA_0.874",0.874]
["OLtg-Lfluor-Mag : Outdoor Linear Fluorescent with Magnetic Ballast","Max Yrs = 15",null,null,"WtrHt-TankIns-Elec : Water Heater Tank Wrap - Electric",2.2999999999999998,null,null,null,null,null,null,"EUC_GSIA_0.875",0.875]
["OLtg-MH : HID Lighting - Metal Halide","Max Yrs = 15",null,null,"WtrHt-TankIns-Gas : Water Heater Tank Wrap - Gas",2.2999999999999998,null,null,null,null,null,null,"EUC_GSIA_0.876",0.876]
["OLtg-Res-LED-15000hr : LED lamp - Outdoor- Residential - Small wattage Globe, Any Candle shape","Max Yrs = 16",null,null,"WtrHt-Timeclock : Circulation Pump Timeclock Retrofit",5,null,null,null,null,null,null,"EUC_GSIA_0.877",0.877]
["OLtg-Res-LED-15000hr-Cmn : LED lamp - Outdoor- Residential Common Area - Small wattage Globe, Any Candle shape","Max Yrs = 16",null,null,"WtrHt-WH-Aertr : Faucet Aerators",3.3,null,null,null,null,null,null,"EUC_GSIA_0.878",0.878]
["OLtg-Res-LED-20000hr : LED lamp - Outdoor- Residential","Max Yrs = 16",null,null,"WtrHt-WH-R4PipeIns-Elec : Pipe Insulation - Electric Water Heater",4.3,null,null,null,null,null,null,"EUC_GSIA_0.879",0.879]
["OLtg-Res-LED-20000hr-Cmn : LED lamp - Outdoor- Residential Common Area","Max Yrs = 16",null,null,"WtrHt-WH-R4PipeIns-Gas : Pipe Insulation - Gas Water Heater - Residential",3.7,null,null,null,null,null,null,"EUC_GSIA_0.88",0.88]
["OLtg-Res-LED-50000hr : LED Fixture - Outdoor- Residential","Max Yrs = 16",null,null,"WtrHt-WH-Shrhd : Low-Flow Showerhead",3.3,null,null,null,null,null,null,"EUC_GSIA_0.882",0.88200000000000001]
["OLtg-Res-LED-50000hr-Cmn : LED Fixture - Outdoor- Residential Common Area","Max Yrs = 16",null,null,null,null,null,null,null,null,null,null,"EUC_GSIA_0.883",0.88300000000000001]
["OLtg-Res-LED-Alamp-10000hr : LED A-lamp - Outdoor- Residential","Max Yrs = 16",null,null,null,null,null,null,null,null,null,null,"EUC_GSIA_0.884",0.88400000000000001]
["OLtg-Res-LED-Alamp-10000hr-Cmn : LED A-lamp - Outdoor- Residential Common Area","Max Yrs = 16",null,null,null,null,null,null,null,null,null,null,"EUC_GSIA_0.885",0.88500000000000001]
["OLtg-T5 : Outdoor HID Lighting (T-5)","Max Yrs = 15",null,null,null,null,null,null,null,null,null,null,"EUC_GSIA_0.886",0.88600000000000001]
["OLtg-TmClck : Timeclock with or without photocell",8,null,null,null,null,null,null,null,null,null,null,"EUC_GSIA_0.887",0.88700000000000001]
["Oltg-LED : LED Lighting",12,null,null,null,null,null,null,null,null,null,null,"EUC_GSIA_0.888",0.88800000000000001]
["OutD-PoolCover : Outdoor pool cover",5,null,null,null,null,null,null,null,null,null,null,"EUC_GSIA_0.889",0.88900000000000001]
["OutD-PoolPump : High Efficiency Pool Pump",10,null,null,null,null,null,null,null,null,null,null,"EUC_GSIA_0.89",0.89]
["OzoneGen : Ozone Generator for commercial laundry",10,null,null,null,null,null,null,null,null,null,null,"EUC_GSIA_0.891",0.89100000000000001]
["Plug-80plus : 80 PLUS Power Supply",4,null,null,null,null,null,null,null,null,null,null,"EUC_GSIA_0.892",0.89200000000000002]
["Plug-HiEffCopier : High Efficiency Copiers",6,null,null,null,null,null,null,null,null,null,null,"EUC_GSIA_0.893",0.89300000000000002]
["Plug-OccSens : Occupancy sensors",8,null,null,null,null,null,null,null,null,null,null,"EUC_GSIA_0.894",0.89400000000000002]
["Plug-Software : Power Management Software",5,null,null,null,null,null,null,null,null,null,null,"EUC_GSIA_0.895",0.89500000000000002]
["Plug-VendCtrler : Vending Machine Controller",5,null,null,null,null,null,null,null,null,null,null,"EUC_GSIA_0.896",0.89600000000000002]
["PrcHt-Blr : High Efficiency Boiler ",20,null,null,null,null,null,null,null,null,null,null,"EUC_GSIA_0.897",0.89700000000000002]
["PrcHt-StmBlr : High Efficiency Boiler ",20,null,null,null,null,null,null,null,null,null,null,"EUC_GSIA_0.898",0.89800000000000002]
["PrcHt-StmTrp : Steam Traps - Process Heat",3,null,null,null,null,null,null,null,null,null,null,"EUC_GSIA_0.899",0.89900000000000002]
["PrcHt-TankIns-Gas : Water Heater Tank Wrap",7,null,null,null,null,null,null,null,null,null,null,"EUC_GSIA_0.9",0.9]
["ProcDist-Motor_Spd : Variable Speed Drive on Process Fan Control",13,null,null,null,null,null,null,null,null,null,null,"EUC_GSIA_0.901",0.90100000000000002]
["PumpCentBstr : Ag Pump - Centrifugal Booster",12.7,null,null,null,null,null,null,null,null,null,null,"EUC_GSIA_0.902",0.90200000000000002]
["PumpSubBstr : Ag Pump - Submersible Booster",8.3000000000000007,null,null,null,null,null,null,null,null,null,null,"EUC_GSIA_0.903",0.90300000000000002]
["PumpSubWell : Ag Pump - Submersible Well",6.5,null,null,null,null,null,null,null,null,null,null,"EUC_GSIA_0.904",0.90400000000000003]
["PumpTurbBstr : Ag Pump - Turbine Booster",9.3000000000000007,null,null,null,null,null,null,null,null,null,null,"EUC_GSIA_0.906",0.90600000000000003]
["PumpTurbWell : Ag Pump - Turbine Well",6.8,null,null,null,null,null,null,null,null,null,null,"EUC_GSIA_0.908",0.90800000000000003]
["RTU-Retro : Rooftop Unit retrocommissioning",3,null,null,null,null,null,null,null,null,null,null,"EUC_GSIA_0.909",0.90900000000000003]
["Recreate-LED_fixt-Com-DskCls : LED Pool Lighting (Dusk to Close)",12,null,null,null,null,null,null,null,null,null,null,"EUC_GSIA_0.911",0.91100000000000003]
["Recreate-LED_fixt-Com-DskDwn : LED Pool Lighting (Dusk to Dawn)",4.9000000000000004,null,null,null,null,null,null,null,null,null,null,"EUC_GSIA_0.912",0.91200000000000003]
["Recreate-LED_fixt-Res : LED Pool Lighting (Residential)",16,null,null,null,null,null,null,null,null,null,null,"EUC_GSIA_0.915",0.91500000000000004]
["RefgWrhs-Comp : Refrigeration Upgrades (Variable Speed Compressors)\n",15,null,null,null,null,null,null,null,null,null,null,"EUC_GSIA_0.916",0.91600000000000004]
["RefgWrhs-Cond : Refrigeration Upgrades (Condenser) - Refg Warehouse",15,null,null,null,null,null,null,null,null,null,null,"EUC_GSIA_0.918",0.91800000000000004]
["RefgWrhs-FltHdPres : Refrigeration Upgrades (Suction Pressure) - Refg Warehouse",15,null,null,null,null,null,null,null,null,null,null,"EUC_GSIA_0.919",0.91900000000000004]
["RefgWrhs-FltSucPres : Refrigeration Upgrades (Head Pressure) - Refg Warehouse",15,null,null,null,null,null,null,null,null,null,null,"EUC_GSIA_0.921",0.92100000000000004]
["RefgWrhs-Retro : Refrigeration Retrocommissioning - Refg Warehouse",3,null,null,null,null,null,null,null,null,null,null,"EUC_GSIA_0.922",0.92200000000000004]
["RefgWrhs-SLIns : Refrigeration Insulation for Bare Suction Lines",11,null,null,null,null,null,null,null,null,null,null,"EUC_GSIA_0.923",0.92300000000000004]
["RefgWrhs-ScrollComp : Refrigeration Scroll Compressors for Bulk Tanks",12,null,null,null,null,null,null,null,null,null,null,"EUC_GSIA_0.924",0.92400000000000004]
["RefgWrhs-SubClr : Refrigeration  Upgrades (Subcooling) - Refg Warehouse",15,null,null,null,null,null,null,null,null,null,null,"EUC_GSIA_0.925",0.92500000000000004]
["Reprog-Tstat : Reprogram thermostat",3,null,null,null,null,null,null,null,null,null,null,"EUC_GSIA_0.927",0.92700000000000005]
["Res-AirCleaner : Room Air Cleaner",9,null,null,null,null,null,null,null,null,null,null,"EUC_GSIA_0.928",0.92800000000000005]
["Res-Behavioral : Behavioral programs in residential settings",1,null,null,null,null,null,null,null,null,null,null,"EUC_GSIA_0.93",0.93]
["Res-Plug-AdvPwrStrip : Tier 2 Advanced Power Strip",5,null,null,null,null,null,null,null,null,null,null,"EUC_GSIA_0.931",0.93100000000000005]
["Res-Plug-Soundbar : Sound Bar",4,null,null,null,null,null,null,null,null,null,null,"EUC_GSIA_0.932",0.93200000000000005]
["Res-RCx-Operational : retrocommissioning and operational programs in residential settings",3,null,null,null,null,null,null,null,null,null,null,"EUC_GSIA_0.933",0.93300000000000005]
["SHW-EMS : Boiler controls for hot water",15,null,null,null,null,null,null,null,null,null,null,"EUC_GSIA_0.935",0.93500000000000005]
["Service-ResEnergyAu : Residential Audits",3,null,null,null,null,null,null,null,null,null,null,"EUC_GSIA_0.936",0.93600000000000005]
["WlHs-Upgrade : Whole House Upgrade",2,null,null,null,null,null,null,null,null,null,null,"EUC_GSIA_0.937",0.93700000000000006]
["WtrHt-Com : Commercial water heater",15,null,null,null,null,null,null,null,null,null,null,"EUC_GSIA_0.938",0.93799999999999994]
["WtrHt-GPoolHtr : Commercial Pool Heater",5,null,null,null,null,null,null,null,null,null,null,"EUC_GSIA_0.939",0.93899999999999995]
["WtrHt-HtPmp : Heat Pump Water Heater",10,null,null,null,null,null,null,null,null,null,null,"EUC_GSIA_0.94",0.94]
["WtrHt-Instant-Com : Commercial Instantaneous Water Heater",20,null,null,null,null,null,null,null,null,null,null,"EUC_GSIA_0.941",0.94099999999999995]
["WtrHt-Instant-Res : Residential Instantaneous Water Heater",20,null,null,null,null,null,null,null,null,null,null,"EUC_GSIA_0.942",0.94199999999999995]
["WtrHt-PipeIns-Elec : Pipe Insulation - Electric Water Heater",13,null,null,null,null,null,null,null,null,null,null,"EUC_GSIA_0.943",0.94299999999999995]
["WtrHt-PipeIns-Gas : Pipe Insulation - Gas Water Heater - Commercial",11,null,null,null,null,null,null,null,null,null,null,"EUC_GSIA_0.944",0.94399999999999995]
["WtrHt-Res-Elec : Residential Electric Water Heater",13,null,null,null,null,null,null,null,null,null,null,"EUC_GSIA_0.945",0.94499999999999995]
["WtrHt-Res-Gas : Residential Gas Water Heater",11,null,null,null,null,null,null,null,null,null,null,"EUC_GSIA_0.946",0.94599999999999995]
["WtrHt-SWH : Solar Water Heating",15,null,null,null,null,null,null,null,null,null,null,"EUC_GSIA_0.947",0.94699999999999995]
["WtrHt-TankIns-Elec : Water Heater Tank Wrap - Electric",7,null,null,null,null,null,null,null,null,null,null,"EUC_GSIA_0.948",0.94799999999999995]
["WtrHt-TankIns-Gas : Water Heater Tank Wrap - Gas",7,null,null,null,null,null,null,null,null,null,null,"EUC_GSIA_0.95",0.95]
["WtrHt-Timeclock : Circulation Pump Timeclock Retrofit",15,null,null,null,null,null,null,null,null,null,null,"EUC_GSIA_0.951",0.95099999999999996]
["WtrHt-WH-Aertr : Faucet Aerators",10,null,null,null,null,null,null,null,null,null,null,"EUC_GSIA_0.952",0.95199999999999996]
["WtrHt-WH-R4PipeIns-Elec : Pipe Insulation - Electric Water Heater",13,null,null,null,null,null,null,null,null,null,null,"EUC_GSIA_0.953",0.95299999999999996]
["WtrHt-WH-R4PipeIns-Gas : Pipe Insulation - Gas Water Heater - Residential",11,null,null,null,null,null,null,null,null,null,null,"EUC_GSIA_0.954",0.95399999999999996]
["WtrHt-WH-Shrhd : Low-Flow Showerhead",10,null,null,null,null,null,null,null,null,null,null,"EUC_GSIA_0.956",0.95599999999999996]
[null,null,null,null,null,null,null,null,null,null,null,null,"EUC_GSIA_0.958",0.95799999999999996]
[null,null,null,null,null,null,null,null,null,null,null,null,"EUC_GSIA_0.959",0.95899999999999996]
[null,null,null,null,null,null,null,null,null,null,null,null,"EUC_GSIA_0.96",0.96]
[null,null,null,null,null,null,null,null,null,null,null,null,"EUC_GSIA_0.961",0.96099999999999997]
[null,null,null,null,null,null,null,null,null,null,null,null,"EUC_GSIA_0.962",0.96199999999999997]
[null,null,null,null,null,null,null,null,null,null,null,null,"EUC_GSIA_0.963",0.96299999999999997]
[null,null,null,null,null,null,null,null,null,null,null,null,"EUC_GSIA_0.964",0.96399999999999997]
[null,null,null,null,null,null,null,null,null,null,null,null,"EUC_GSIA_0.965",0.96499999999999997]
[null,null,null,null,null,null,null,null,null,null,null,null,"EUC_GSIA_0.967",0.96699999999999997]
[null,null,null,null,null,null,null,null,null,null,null,null,"EUC_GSIA_0.968",0.96799999999999997]
[null,null,null,null,null,null,null,null,null,null,null,null,"EUC_GSIA_0.969",0.96899999999999997]
[null,null,null,null,null,null,null,null,null,null,null,null,"EUC_GSIA_0.97",0.97]
[null,null,null,null,null,null,null,null,null,null,null,null,"EUC_GSIA_0.971",0.97099999999999997]
[null,null,null,null,null,null,null,null,null,null,null,null,"EUC_GSIA_0.972",0.97199999999999998]
[null,null,null,null,null,null,null,null,null,null,null,null,"EUC_GSIA_0.973",0.97299999999999998]
[null,null,null,null,null,null,null,null,null,null,null,null,"EUC_GSIA_0.974",0.97399999999999998]
[null,null,null,null,null,null,null,null,null,null,null,null,"EUC_GSIA_0.975",0.97499999999999998]
[null,null,null,null,null,null,null,null,null,null,null,null,"EUC_GSIA_0.976",0.97599999999999998]
[null,null,null,null,null,null,null,null,null,null,null,null,"EUC_GSIA_0.977",0.97699999999999998]
[null,null,null,null,null,null,null,null,null,null,null,null,"EUC_GSIA_0.978",0.97799999999999998]
[null,null,null,null,null,null,null,null,null,null,null,null,"EUC_GSIA_0.979",0.97899999999999998]
[null,null,null,null,null,null,null,null,null,null,null,null,"EUC_GSIA_0.98",0.98]
[null,null,null,null,null,null,null,null,null,null,null,null,"EUC_GSIA_0.981",0.98099999999999998]
[null,null,null,null,null,null,null,null,null,null,null,null,"EUC_GSIA_0.982",0.98199999999999998]
[null,null,null,null,null,null,null,null,null,null,null,null,"EUC_GSIA_0.983",0.98299999999999998]
[null,null,null,null,null,null,null,null,null,null,null,null,"EUC_GSIA_0.984",0.98399999999999999]
[null,null,null,null,null,null,null,null,null,null,null,null,"EUC_GSIA_0.985",0.98499999999999999]
[null,null,null,null,null,null,null,null,null,null,null,null,"EUC_GSIA_0.986",0.98599999999999999]
[null,null,null,null,null,null,null,null,null,null,null,null,"EUC_GSIA_0.988",0.98799999999999999]
[null,null,null,null,null,null,null,null,null,null,null,null,"EUC_GSIA_0.989",0.98899999999999999]
[null,null,null,null,null,null,null,null,null,null,null,null,"EUC_GSIA_0.99",0.99]
[null,null,null,null,null,null,null,null,null,null,null,null,"EUC_GSIA_0.991",0.99099999999999999]
[null,null,null,null,null,null,null,null,null,null,null,null,"EUC_GSIA_0.992",0.99199999999999999]
[null,null,null,null,null,null,null,null,null,null,null,null,"EUC_GSIA_0.993",0.99299999999999999]
[null,null,null,null,null,null,null,null,null,null,null,null,"MFm-ExtCF-All",0.88100000000000001]
[null,null,null,null,null,null,null,null,null,null,null,null,"MFm-ExtCF-PGE",0.89]
[null,null,null,null,null,null,null,null,null,null,null,null,"MFm-ExtCF-SCE",0.87]
[null,null,null,null,null,null,null,null,null,null,null,null,"MFm-ExtCF-SDG",0.71]
[null,null,null,null,null,null,null,null,null,null,null,null,"MFm-IntCF-All",0.79900000000000004]
[null,null,null,null,null,null,null,null,null,null,null,null,"MFm-IntCF-PGE",0.87]
[null,null,null,null,null,null,null,null,null,null,null,null,"MFm-IntCFL-All",0.79800000000000004]
[null,null,null,null,null,null,null,null,null,null,null,null,"MFm-IntCFL-PGE",0.89]
[null,null,null,null,null,null,null,null,null,null,null,null,"MFm-IntCFL-SCE",0.72]
[null,null,null,null,null,null,null,null,null,null,null,null,"MFm-IntCFL-SDG",0.71]
[null,null,null,null,null,null,null,null,null,null,null,null,"MFm-LF-All",0.81]
[null,null,null,null,null,null,null,null,null,null,null,null,"MFm-LF-PGE",0.77]
[null,null,null,null,null,null,null,null,null,null,null,null,"MFm-LF-SCE",0.77]
[null,null,null,null,null,null,null,null,null,null,null,null,"MFm-LF-SDG",0.92]
[null,null,null,null,null,null,null,null,null,null,null,null,"PGE-Prop_CFL_0.67",0.67]
[null,null,null,null,null,null,null,null,null,null,null,null,"PGE-Prop_CFL_0.73",0.73]
[null,null,null,null,null,null,null,null,null,null,null,null,"PGE:LM005-1975",0.71099999999999997]
[null,null,null,null,null,null,null,null,null,null,null,null,"PGE:LM005-1985",0.73199999999999998]
[null,null,null,null,null,null,null,null,null,null,null,null,"PGE:LM005-1996",0.54200000000000004]
[null,null,null,null,null,null,null,null,null,null,null,null,"PGE:LM081-1975",0.86199999999999999]
[null,null,null,null,null,null,null,null,null,null,null,null,"PGE:LM081-1985",0.877]
[null,null,null,null,null,null,null,null,null,null,null,null,"PGE:LM081-1996",0.88800000000000001]
[null,null,null,null,null,null,null,null,null,null,null,null,"PGE:LM125-1975",0.72399999999999998]
[null,null,null,null,null,null,null,null,null,null,null,null,"PGE:LM125-1985",0.74399999999999999]
[null,null,null,null,null,null,null,null,null,null,null,null,"PGE:LM125-1996",0.749]
[null,null,null,null,null,null,null,null,null,null,null,null,"PGE:LM141-1975",0.77400000000000002]
[null,null,null,null,null,null,null,null,null,null,null,null,"PGE:LM141-1985",0.80100000000000005]
[null,null,null,null,null,null,null,null,null,null,null,null,"PGE:LM141-1996",0.76600000000000001]
[null,null,null,null,null,null,null,null,null,null,null,null,"PGE:LM162-1975",0.68200000000000005]
[null,null,null,null,null,null,null,null,null,null,null,null,"PGE:LM162-1985",0.72]
[null,null,null,null,null,null,null,null,null,null,null,null,"PGE:LM162-1996",0.60299999999999998]
[null,null,null,null,null,null,null,null,null,null,null,null,"PGE:LM165-1975",0.82299999999999995]
[null,null,null,null,null,null,null,null,null,null,null,null,"PGE:LM165-1985",0.82899999999999996]
[null,null,null,null,null,null,null,null,null,null,null,null,"PGE:LM165-1996",0.80100000000000005]
[null,null,null,null,null,null,null,null,null,null,null,null,"Pool-Cover-Com-PGE",0.28000000000000003]
[null,null,null,null,null,null,null,null,null,null,null,null,"Pool-Cover-Com-SCG",0.38]
[null,null,null,null,null,null,null,null,null,null,null,null,"Pool-Cover-Com-SDG",0.38]
[null,null,null,null,null,null,null,null,null,null,null,null,"Res-AC-SCE",1]
[null,null,null,null,null,null,null,null,null,null,null,null,"Res-AC-SDG",1]
[null,null,null,null,null,null,null,null,null,null,null,null,"Res-AtticIns-All",0.78200000000000003]
[null,null,null,null,null,null,null,null,null,null,null,null,"Res-AtticIns-PGE",0.65200000000000002]
[null,null,null,null,null,null,null,null,null,null,null,null,"Res-AtticIns-SCG",0.83199999999999996]
[null,null,null,null,null,null,null,null,null,null,null,null,"Res-AtticIns-SDG",0.78200000000000003]
[null,null,null,null,null,null,null,null,null,null,null,null,"Res_CFL_PGE",0.89]
[null,null,null,null,null,null,null,null,null,null,null,null,"Res-CW-PGE",1]
[null,null,null,null,null,null,null,null,null,null,null,null,"Res-CW-SCG",1]
[null,null,null,null,null,null,null,null,null,null,null,null,"Res-CW-SDG",1]
[null,null,null,null,null,null,null,null,null,null,null,null,"Res-DW-PGE",1]
[null,null,null,null,null,null,null,null,null,null,null,null,"Res-DW-SCG",1]
[null,null,null,null,null,null,null,null,null,null,null,null,"Res-DW-SDG",1]
[null,null,null,null,null,null,null,null,null,null,null,null,"Res-DuctSeal-All",0.46300000000000002]
[null,null,null,null,null,null,null,null,null,null,null,null,"Res-DuctSeal-PGE",0.58399999999999996]
[null,null,null,null,null,null,null,null,null,null,null,null,"Res-DuctSeal-PGE-2000",0.49]
[null,null,null,null,null,null,null,null,null,null,null,null,"Res-DuctSeal-PGE-2078",0.41]
[null,null,null,null,null,null,null,null,null,null,null,null,"Res-DuctSeal-SCE",0.46800000000000003]
[null,null,null,null,null,null,null,null,null,null,null,null,"Res-DuctSeal-SCE-2502",0.41]
[null,null,null,null,null,null,null,null,null,null,null,null,"Res-DuctSeal-SCE-2507",0.51]
[null,null,null,null,null,null,null,null,null,null,null,null,"Res-DuctSeal-SDG",0.41]
[null,null,null,null,null,null,null,null,null,null,null,null,"Res-Ins-All",0.86499999999999999]
[null,null,null,null,null,null,null,null,null,null,null,null,"Res-Ins-PGE",0.79200000000000004]
[null,null,null,null,null,null,null,null,null,null,null,null,"Res-Ins-SCG",0.90200000000000002]
[null,null,null,null,null,null,null,null,null,null,null,null,"Res-Ins-SDG",0.8]
[null,null,null,null,null,null,null,null,null,null,null,null,"Res-LowF-DHWSavingsKit-All-DMo",0.43]
[null,null,null,null,null,null,null,null,null,null,null,null,"Res-LowF-DHWSavingsKit-All-MFm",0.45]
[null,null,null,null,null,null,null,null,null,null,null,null,"Res-LowF-DHWSavingsKit-All-SFm",0.43]
[null,null,null,null,null,null,null,null,null,null,null,null,"Res-LowF-FA-All",0.66500000000000004]
[null,null,null,null,null,null,null,null,null,null,null,null,"Res-LowF-FA-SDG-DMo",0.77]
[null,null,null,null,null,null,null,null,null,null,null,null,"Res-LowF-FA-SDG-MFm",0.59]
[null,null,null,null,null,null,null,null,null,null,null,null,"Res-LowF-SH-All",0.73699999999999999]
[null,null,null,null,null,null,null,null,null,null,null,null,"Res-LowF-SH-PGE",0.8]
[null,null,null,null,null,null,null,null,null,null,null,null,"Res-LowF-SH-SCE",0.59]
[null,null,null,null,null,null,null,null,null,null,null,null,"Res-LowF-SH-SDG",0.76]
[null,null,null,null,null,null,null,null,null,null,null,null,"Res-LowF-wRest-SH-All",0.59]
[null,null,null,null,null,null,null,null,null,null,null,null,"Res-PoolPump-SDG",1]
[null,null,null,null,null,null,null,null,null,null,null,null,"Res-RAC-All",0.95899999999999996]
[null,null,null,null,null,null,null,null,null,null,null,null,"Res-RAC-PGE",0.93]
[null,null,null,null,null,null,null,null,null,null,null,null,"Res-RAC-SCE",0.96]
[null,null,null,null,null,null,null,null,null,null,null,null,"Res-RAC-SDG",0.93]
[null,null,null,null,null,null,null,null,null,null,null,null,"Res-RCA-All",0.56799999999999995]
[null,null,null,null,null,null,null,null,null,null,null,null,"Res-RCA-PGE",0.54]
[null,null,null,null,null,null,null,null,null,null,null,null,"Res-RCA-PGE-2000",0.52]
[null,null,null,null,null,null,null,null,null,null,null,null,"Res-RCA-PGE-2078",0.89]
[null,null,null,null,null,null,null,null,null,null,null,null,"Res-RCA-SCE",0.57099999999999995]
[null,null,null,null,null,null,null,null,null,null,null,null,"Res-RCA-SCE-2502",0.89]
[null,null,null,null,null,null,null,null,null,null,null,null,"Res-RCA-SCE-2507",0.55000000000000004]
[null,null,null,null,null,null,null,null,null,null,null,null,"Res-RCA-SDG",0.89]
[null,null,null,null,null,null,null,null,null,null,null,null,"Res-WallIns-All",0.94599999999999995]
[null,null,null,null,null,null,null,null,null,null,null,null,"Res-WallIns-PGE",0.91700000000000004]
[null,null,null,null,null,null,null,null,null,null,null,null,"Res-WallIns-SCG",0.97]
[null,null,null,null,null,null,null,null,null,null,null,null,"Res-WallIns-SDG",0.82199999999999995]

{"sheet":"UseCat - UseSubCat","index":16,"n_rows":32,"n_cols":18,"rows_kept":32,"cut":false,"hidden":true,"merged":[]}
[]
["AP : Appliance or Plug Load","BE : Building Envelope","CA : Compressed Air","CR : Commercial Refrigeration","C&S : Codes & Standards","FS : Food Service","HC : HVAC","Irrigate : Irrigation","LG : Lighting","NonSav : Non-Savings Measure","ProcDist : Process Distribution","ProcDry : Process Drying","ProcHeat : Process Heat","ProcRefrig : Process Refrigeration","RE : Recreation","SV : Service","WH : Service and Domestic Hot Water","WB : Whole Building"]
["Electronics : Consumer Electronics","Fenestration : Fenestration","ChemTreat : Chemical treatment","Display : Display","UnCatC&S : Codes and Standards Uncategorized","Cleaning : Cleaning","EnvCtrl : Environmental Controls","FarmIrrig : Farming Irrigation","InCommon : Indoor Common Area","NonSav : Non-saving measure","AirDist : Air distribution (fan systems)","Condensing : Condensing","Cooking : Cooking","ProdChill : Product chilling","Pool : Pool","Audit : Audit","Distribute : Water Distribution","WBUpgrade : Whole Building Upgrade"]
["KitchenApp : Kitchen Appliances","Opaque : Opaque Envelope","Controls : Pneumatic controls operation","Equipment : Equipment",null,"Cooking : Cooking","HeatCool : Space Heating and Cooling","LandScape : LandScape Irrigation","InExit : Indoor Exit Lighting",null,"DairyVac : Diary Vacuum Pump","Curing : Curing","Drying : Drying","ProdManuf : Product manufacturing","Spa : Spa","Diagnostic : Diagnostic Services","Heating : Water Heating"]
["Laundry : Laundry Appliances",null,"ManufAQA : Manufacturing - Average quality air","Storage : Storage",null,"Packaging : Packaging","HtRej : Heat Rejection",null,"InGen : Indoor General Lighting",null,"Power : Power","EvapSepDehyd : Evaporating/Separating/Dehydration","EnvContols : Environmental controls","ProdStore : Product storage",null,"Maintenance : Maintenance","PointOfUse : Hot Water Point of Use"]
["Office_eq : Office Equipment",null,"ManufDryAir : Manufacturing - Dry air",null,null,null,"SpaceCool : Space Cooling",null,"InGen-CFL : Indoor General CFL Lighting",null,"Pumping : Pumping","Finish : Finishing","EvapSepDehyd : Evaporating/Separating/Dehydration","Separate : Separation",null,"RetroComm : Retro-Commissioning Services"]
["Refrig : Refrigerated Storage",null,"MatConvPkg : Material conveying/packaging",null,null,null,"SpaceHeat : Space Heating",null,"InGen-HB : Indoor General High Bay Lighting",null,null,null,"HeatTreat : Heat treatment",null,null,"Testing : Testing Services"]
["Vending : Product Vending",null,"ToolsOp : Tools operation",null,null,null,"VentAirDist : Ventilation and Air Distribution",null,"InGen-LF : Indoor General Linear Fluorescent Lighting",null,null,null,"LiquidDist : Liquid Distribution"]
[null,null,null,null,null,null,null,null,"InRetDisp : Indoor Retail Display Lighting",null,null,null,"Melting : Metal/material melting"]
[null,null,null,null,null,null,null,null,"InTask : Indoor Task Lighting",null,null,null,"Pasteurize : Pasteurizing"]
[null,null,null,null,null,null,null,null,"Out24hr : Outdoor 24-hour",null,null,null,"PreheatLiqSol : Preheating of liquids/solids"]
[null,null,null,null,null,null,null,null,"OutCommon : Outdoor Common Area Lighting",null,null,null,"Reheat : Reheat"]
[null,null,null,null,null,null,null,null,"OutDuskDawn : Outdoor Dusk to Dawn",null,null,null,"SteamDist : Steam Distribution"]
[null,null,null,null,null,null,null,null,"OutGen : Outdoor General Lighting"]
[null,null,null,null,null,null,null,null,"OutSign : Outdoor Signage"]
[null,null,null,null,null,null,null,null,"ParkGar : Parking Garage (Unconditioned)"]
[null,null,null,null,null,null,null,null,"RefDisplay : Refrigeration Display Case Lighting"]
[null,null,null,null,null,null,null,null,"Seasonal : Seasonal Lighting"]
[]
[]
[]
[]
[]
[]
[]
[]
[]
[]
[]
[]
[]
[null,null,null,null,null,null,null,null,null,null,null,null,"  "]

{"sheet":"Tech Group - Tech Type","index":17,"n_rows":17,"n_cols":43,"rows_kept":17,"cut":false,"hidden":true,"merged":[]}
["AirComp : Air Compressor","AnDigestor : Anaerobic Digestor","AuditInfoTest : Audit, Information, Testing Services","BldgShell : Building Shell (Opaque)","Chiller : Liquid Chilling Equipment","Clean_equip : Cleaning Equipment","Cook_equip : Cooking Equipment","C&S : Codes & Standards","dxAC_equip : dX AC Equipment","dxHP_equip : dx HP Equipment","Electronics : Business and Consumer Electronics","EvapCool_eq : Evaporative Cooling Equipment","FacPondAer : Facultative Pond Aerator","Fenest : Fenestration","FoodService : Food Service","HeatEx : Heat Exchanger","HeatReject : Heat Rejection Equipment","HV_AirDist : HVAC Air Distribution","HV_Tech : HVAC Technology","Irrigation : Irrigation Equipment","LiquidCirc : Liquid Circulation","Ltg_Ballast : Lighting - Ballasts","Ltg_Controls : Lighting - Controls","Ltg_Fixture : Lighting - Fixtures","Ltg_Lamp : Lighting - Lamps","Ltg_Lmp+Blst : Lighting - Lamps + Ballasts","Ltg_PlugIn : Lighting - Plug-in","Motor : Motor","Motor_gen : General Purpose Motor","Motor_Spd : Motor Speed Control (Non-HVAC)","NonSav : Non-Savings Measure","PoolSpa_eq : Pool and Spa Equipment","PumpSystem : Pump System","Ref_SelfCon : Self-Contained Refrigeration","Ref_Storage : Refrigerated Storage","RodPumps : Rod Beam Pump","SpaceHtg_eq : Space Heating Equipment","SteamCirc : Steam Circulation","SteamHtg_eq : Steam Heating Equipment","VertTrans : Vertical Transportation","WaterFixt : Plumbing Fixture","WaterHtg_eq : Water Heating Equipment","WhlBldg : Whole Building"]
["Blower : Blower","Optimal : Optimization","ResEnAudit : Residential Energy Audit","AttBatIns : Attic Batt Insulation","AirCldRecipChlr : Air-cooled Recip Chiller","ClothesWash : Clothes washer","Broiler : Broiler","UnCatC&S : Codes & Standards Uncategorized","pkgEER : EER Rated Package Rooftop AC","pkgEER : EER Rated Package Rooftop HP","AllEquip : All Equipment","ComEvap : Commercial Evaporative Cooler","OxyDemCtrl : Oxygen Demand Control","IRFilm : IR Film for greenhouse","HandWrap : Hand Wrap Machine","PlateClr : Plate Cooler","TwrFanCtrl : Cooling Tower Fan Control","AirEcono : Air Economizer","CO2sens : Carbon Dioxide Sensor","IrrifSys : Irrigation System","CircBlockHtr : Circulating Block Heater","LF_Ballast : Fluorescent Ballast","IRsensor : Infrared Sensor","CFL_fixt : CFL  Fixture","CFLint_lamp : Integral CFL (screw-in)","CFL_LmpBlst : Component-based CFL Lamp and Ballast","LtString : Light String","GenPurpose : General Purpose","Agitation : Agitation/mixing drive","ASD : Adjustable Speed Drive","Bonus : Non-Savings Measure Bonus payment","LqdPoolCvr : Liquid Pool Cover","CentBstr : Centrifugal Booster Pump","IceMach : Ice Machine","AutoCloserCF : Automatic door closer\r\n","PumpCtrl : Pump Control","GasFurnace : Gas Furnace","PipeIns : Pipe Insulation","Boiler_AF : AFUE Rated Boiler","ElevMotor : Elevator Motor","DHWSavingsKit : DHW Savings Kit (faucet aerators and low flow showerheads)","Boiler_AF : AFUE Rated Boiler","WBldgImpArea : Area Whole-building Improvements"]
["Centrif : Centrifugal ",null,null,"AttBlowIns : Attic Blown-in Insulation","AirCldScrewChlr : Air-cooled Screw Chiller","DishWash : Dishwasher","Fryer : Fryer",null,"pkgSEER : SEER Rated Package Rooftop AC","pkgSEER : SEER Rated Package Rooftop HP","DesktopComp : Desktop Computer","ResEvap : Residential Evaporative Cooler",null,"ManufSky : Manufactured Skylight","HoldBin : Holding bin",null,"TwrFanMtr : Cooling Tower Fan - General Purpose Motor","AxialFan : Axial Fan","D5Tstat : D5 Thermostat",null,"CompHeatRecov : Compressor Heat Recovery - Industrial Application\r\n",null,"LtSensor : Light Sensor","Exit_fixt : Exit Fixture","CFLpin_lamp : Pin-based CFL (no ballast)","HID_LmpBlst : HID Lamp with Ballast","NiteLight : Night Light",null,"BlrDraftFan : Boiler draft fan",null,"Correction : Non-Savings Measure Correction","PoolCvr : Pool Cover","Centrif : Centrifugal ",null,"Freezer : Freezer",null,null,"SteamTrap : Steam Trap","Boiler_Et : Et Rated Boiler",null,"FaucetAer : Faucet Aerator","Boiler_Et : Et Rated Boiler","WBldgImpSite : Site Whole-Building Improvements"]
["CycAirDryr : Cycling Air Dryer",null,null,"CoolRoof : Cool Roof","CentChlr : Centrifugal Water Chiller",null,"Griddle : Griddle",null,"pkgTerm : Package Terminal AC","pkgTerm : Package Terminal Heat Pump","IRsensor : Infrared Sensor",null,null,"ManufWin : Manufactured Window","HoldCab : Electric Holding Cabinet",null,"WSEcono : Water Side Economizer","DuctInsC : Duct System Insulation - Commercial","DCV : Demand controlled ventilation \r\n",null,"FlowCtrl : Flow Controls",null,"OccSensor : hard-wired occupancy sensor","HID_fixt : HID Fixture","Hal_lamp : Halogen Lamp","Ind_LmpBlst : Induction Lamp with Ballast","PlugIn_fixt : Fixture",null,"CondRetpmp : Condensate return pump",null,"NonSav : Non-Savings Measure","PoolHeater : Swimming Pool / Spa Heater","PosDisp : Positive Displacement",null,"Gasket : Door Gasket",null,null,null,null,null,"FlowRestrict : Flow Restriction Valve","HP_EF : EF Rated Heat Pump Water Heater","WBRetPkg : Whole-Building Retrofit Package"]
["NonCycAirDryr : Non-Cycling Air Dryer",null,null,"FloorIns : Floor Insulation","GasAbsorp : Gas Absorption Chiller",null,"GrillTO : Grill to Order ",null,"Refrig : Split or Packaged DX AC Refrigerant System","spltEER : EER Rated Split System HP","Monitor : Computer Monitor",null,null,"SiteBuiltSky : Site-built Skylight","StmHoldBin : Steam Holding Bin",null,null,"DuctInsul : Duct System Insulation - Residential","EMS : EMS",null,"FlowTempCtrl : Flow Plus Temperature Controls",null,"Timer : Time Clock","Ind_fixt : Induction Fixture","Incan_lamp : Incandescent Lamp","LF_LmpBlst : Linear Fluorescent Lamp with Ballast","Signage : Signage",null,"ConveyDrv : Conveyor drive",null,"Pilot : Non-Savings Measure Pilot program","PoolPump : Pool Pump","ProgCapac : Progressive Capacity Pump",null,"HorDisp : Horizontal (coffin) Display Fixture ",null,null,null,null,null,"ShowerHd : Showerhead","HP_UEF : UEF-rated Heat Pump Water Heater"]
["Recip : Reciprocating",null,null,"RigidRoofIns : Rigid Roof Insulation","NoFricCent : Frictionless Centrifugal Water Chiller",null,"OvenComb : Oven-Combo",null,"RoomAC : Room AC","spltSEER : SEER Rated Split System HP","MoveSensor : Motion Sensor",null,null,"SiteBuiltWin : Site-built Window",null,null,null,"DuctLeak : Duct System Integrity - Residential","OccSens : HVAC occupancy sensor\r\n",null,"PipeIns : Pipe Insulation",null,null,"LED_fixt : LED Fixture","LED_lamp : LED Lamp",null,null,null,"ElevDrv : Elevator drive",null,null,null,"SubBstr : Submersible Booster Pump",null,"NightCover : Night Cover for Vertical Refrigerated Display\r\n",null,null,null,null,null,"ShowerHdFlowRes : Showerhead with Flow Restriction Valve","Instant_EF : EF Rated Instantaneous Water Heater"]
["Screw : Screw",null,null,"SprayRoofIns : Spray-on Roof Insulation","NoFricComp : Frictionless Centrifugal Water Chilling Compressor",null,"OvenConv : Oven-Convection",null,"spltEER : EER Rated Split System AC","VarRefgHP : Variable Refrigerant Heat Pump","OccSensPlug : Occupancy Sensor Plug Strip",null,null,"ThermCurtain : Thermal Curtain",null,null,null,"DuctSysC : Duct System Integrity - Commercial","OxyDemCtrl : CO2 sensor and Fault Detection controls",null,"PumpMtr : Pump - General Purpose Motor",null,null,"LinFluor_fixt : Linear Fluorescent Fixture","LF_lamp : Linear Fluorescent Lamp",null,null,null,"IrrigPmp : Irrigation pump",null,null,null,"SubWell : Submersible Well Pump",null,"ReachIn : Reach-In Storage",null,null,null,null,null,null,"Instant_Et : Et Rated Instantaneous Water Heater"]
["TimerCondDrn : Timer condensate drain",null,null,"ThermCurtain : Thermal Curtain for a Greenhouse","Recip : Reciprocating Water Chiller",null,"Steamer : Steamer",null,"spltSEER : SEER Rated Split System AC","VarRefgHR : Variable Refrigerant Heat Recovery","Software : Networked power management software",null,null,"WinFilm : Window Film",null,null,null,"ExFanMtr : HVAC Exhaust Fan - General Purpose Motor","Timer : Time Clock",null,"TempReset : Temperature Reset Control",null,null,null,null,null,null,null,"ManMachDrv : Manufacturing machine drive",null,null,null,"TurbBstr : Turbine Booster Pump",null,"RefControl : Refrigeration Controls",null,null,null,null,null,null,"Instant_UEF : UEF Rated Instantaneous Water Heater"]
["ZeroLossCondDrn : Zero-loss condensate drain",null,null,"WallBattIns : Wall Batt Insulation","RecipComp : Reciprocating Water Chilling Compressor",null,"SteamLine : Steam Line",null,"vertEER : EER Rated Vertical Self-Contained AC","WSHP : Water Source Heat Pump","Timer : Time Clock",null,null,"WinShade : Window Shade",null,null,null,"FlowCtrl : Flow Control","TimerRes : Timer integrated into HVAC unit fan - Residential\r\n",null,"Timer : Time Clock",null,null,null,null,null,null,null,"MatProcDrv : Material processing machine drive",null,null,null,"TurbWell : Turbine Well Pump",null,"RefrigFrz : Refrigerator/Freezer",null,null,null,null,null,null,"Stor_EF : EF Rated Storage Water Heater"]
[null,null,null,"WallBlowIns : Wall Blown-in Insulation","RefWareCool : Refrigerated Warehouse Cooling System",null,"StockPot : Stock Pot",null,null,null,"TV : Television",null,null,null,null,null,null,"HeatRecov : Heat Recovery","TStat : Thermostat",null,null,null,null,null,null,null,null,null,"MUWaterPmp : Makeup water pump",null,null,null,null,null,"RefrigLtg : Refrigerator Lighting",null,null,null,null,null,null,"Stor_Et : Et Rated Storage Water Heater"]
[null,null,null,"WallSprayIns : Wall Spray-on Insulation","Screw : Screw Water Chiller",null,null,null,null,null,"UPS : Uninterruptible Power Supply",null,null,null,null,null,null,"RetFanMtr : HVAC Return Fan - General Purpose Motor","WHFan : Whole House Fan",null,null,null,null,null,null,null,null,null,"StackExfan : Stack economizer exhaust fan",null,null,null,null,null,"StripCurt : Strip Curtains",null,null,null,null,null,null,"Stor_UEF : UEF Rated Storage Water Heater"]
[null,null,null,"Weatherize : Low-Income Weatherization","Scroll : Scroll Water Chiller",null,null,null,null,null,null,null,null,null,null,null,null,"SupFanMtr : HVAC Supply Fan - General Purpose Motor",null,null,null,null,null,null,null,null,null,null,null,null,null,null,null,null,"TempSensor : Temperature Sensor",null,null,null,null,null,null,"TankIns : Tank Insulation"]
[null,null,null,null,"TankIns : Tank Insulation",null,null,null,null,null,null,null,null,null,null,null,null,"VentFanMtr : HVAC Ventilation Fan - General Purpose Motor",null,null,null,null,null,null,null,null,null,null,null,null,null,null,null,null,"VertDisplay : Vertical (multi-deck) Display Fixture"]
[null,null,null,null,"WtrCldCentChlr : Water-cooled Centrifugal Chiller",null,null,null,null,null,null,null,null,null,null,null,null,null,null,null,null,null,null,null,null,null,null,null,null,null,null,null,null,null,"VMController : Vending Machine controller"]
[null,null,null,null,"WtrCldRecipChlr : Water-cooled Reciprocating Chiller",null,null,null,null,null,null,null,null,null,null,null,null,null,null,null,null,null,null,null,null,null,null,null,null,null,null,null,null,null,"WalkInCool : Walk-in Cooler"]
[null,null,null,null,"WtrCldScrewChlr : Water-cooled Screw Chiller",null,null,null,null,null,null,null,null,null,null,null,null,null,null,null,null,null,null,null,null,null,null,null,null,null,null,null,null,null,"WalkInDoor : Walk-in Door"]
[null,null,null,null,null,null,null,null,null,null,null,null,null,null,null,null,null,null,null,null,null,null,null,null,null,null,null,null,null,null,null,null,null,null,"WalkInFrz : Walk-in Freezer"]